Workbook

Sheet gl. til nyt niveau (hidden)
B1: 1.398079
D2: Nyt grundbeløb | E2: Nyt grundbeløb
A3: Grundbeløb pr. 1/10-1984 | B3: I alt pr. 1. april 1999 inkl. %regulering | D3: pr. 31/3-2000 | E3: pr. 31/3-2000
D4: ekskl. afrunding | E4: inkl. afrunding
F5: beløb
B6: pr. gang/år | C6: pr. måned | F6: +/-
A7: 1.63 | B7: =IF(A7<1000,$B$1*A7,ROUND($B$1*A7,0)) -> 2.27886877 | D7: =B7 -> 2.27886877 | E7: =IF(D7<1000,D7,ROUND(D7,-2)) -> 2.27886877
A8: 5 | B8: 6.990395 | D8: =B8 -> 6.990395 | E8: 6.990395
A9: 5.8 | B9: 8.1088582 | D9: 8.1088582 | E9: 8.1088582
A10: 9 | B10: 12.582711 | D10: 12.582711 | E10: 12.582711
A11: 10.5 | B11: 14.6798295 | D11: 14.6798295 | E11: 14.6798295
A12: 12.22 | B12: 17.08452538 | D12: 17.08452538 | E12: 17.08452538
A13: 12.65 | B13: 17.68569935 | D13: 17.68569935 | E13: 17.68569935
A14: 13.39 | B14: 18.72027781 | D14: 18.72027781 | E14: 18.72027781
A15: 13.75 | B15: 19.22358625 | D15: 19.22358625 | E15: 19.22358625
A16: 14.46 | B16: 20.21622234 | D16: 20.21622234 | E16: 20.21622234
A17: 15.2 | B17: 21.2508008 | D17: 21.2508008 | E17: 21.2508008
A18: 15.5 | B18: 21.6702245 | D18: 21.6702245 | E18: 21.6702245
A19: 17 | B19: 23.767343 | D19: 23.767343 | E19: 23.767343
A20: 18.5 | B20: 25.8644615 | D20: 25.8644615 | E20: 25.8644615
A21: 19 | B21: 26.563501 | D21: 26.563501 | E21: 26.563501
A22: 21 | B22: 29.359659 | D22: 29.359659 | E22: 29.359659
A23: 23 | B23: 32.155817 | D23: 32.155817 | E23: 32.155817
A24: 24.97 | B24: 34.91003263 | D24: 34.91003263 | E24: 34.91003263
A25: 28 | B25: 39.146212 | D25: 39.146212 | E25: 39.146212
A26: 30 | B26: 41.94237 | D26: 41.94237 | E26: 41.94237
A27: 33.29 | B27: 46.54204991 | D27: 46.54204991 | E27: 46.54204991
A28: 42 | B28: 58.719318 | D28: 58.719318 | E28: 58.719318
A29: 61.26 | B29: 85.64631954 | D29: 85.64631954 | E29: 85.64631954
A30: 62 | B30: 86.680898 | D30: 86.680898 | E30: 86.680898
A31: 68.32 | B31: 95.51675728 | D31: 95.51675728 | E31: 95.51675728
A32: 75.13 | B32: 105.0376753 | D32: 105.0376753 | E32: 105.0376753
A33: 80.38 | B33: 112.37759 | D33: 112.37759 | E33: 112.37759
A34: 136.64 | B34: 191.0335146 | D34: =B34 -> 191.0335146 | E34: 191.0335146
A35: 143.99 | B35: 201.3093952 | D35: =B35 -> 201.3093952 | E35: 201.3093952
A36: 150.61 | B36: 210.5646782 | D36: 210.5646782 | E36: 210.5646782
A37: 164 | B37: 229.284956 | D37: 229.284956 | E37: 229.284956
A38: 170 | B38: 237.67343 | D38: 237.67343 | E38: 237.67343
A39: 190 | B39: 265.63501 | D39: 265.63501 | E39: =IF(D39<1000,D39,ROUND(D39,-2)) -> 265.63501
A40: 195 | B40: 272.625405 | D40: 272.625405 | E40: 272.625405
A41: 202 | B41: 282.411958 | D41: 282.411958 | E41: 282.411958
A42: 260 | B42: 363.50054 | D42: 363.50054 | E42: 363.50054
A43: 278 | B43: 388.665962 | D43: 388.665962 | E43: 388.665962
A44: 300.84 | B44: 420.5980864 | D44: 420.5980864 | E44: 420.5980864
A45: 350 | B45: 489.32765 | D45: 489.32765 | E45: 489.32765
A46: 380 | B46: 531.27002 | D46: 531.27002 | E46: 531.27002
A47: 398.95 | B47: 557.763617 | D47: 557.763617 | E47: 557.763617
A48: 420 | B48: 587.19318 | D48: 587.19318 | E48: 587.19318
A49: 465 | B49: 650.106735 | D49: 650.106735 | E49: 650.106735
A50: 490 | B50: 685.05871 | D50: 685.05871 | E50: 685.05871
A51: 502 | B51: 701.835658 | D51: 701.835658 | E51: 701.835658
A52: 559 | B52: 781.526161 | D52: 781.526161 | E52: 781.526161
A53: 597 | B53: 834.653163 | D53: 834.653163 | E53: 834.653163
A54: 700 | B54: 978.6553 | C54: =VALUE(B54)/12 -> 81.55460833 | D54: 978.6553 | E54: =IF(D54<1000,D54,ROUND(D54,-2)) -> 978.6553 | F54: =E54-D54 -> 0
A55: 750 | B55: 1048.55925 | C55: 87.3799375 | D55: 1048.55925 | E55: =IF(D55<1000,D55,ROUND(D55,-2)) -> 1000 | F55: -48.55925
A56: 800 | B56: 1118.4632 | C56: 93.20526667 | D56: 1118.4632 | E56: =IF(D56<1000,D56,ROUND(D56,-2)) -> 1100 | F56: -18.4632
A57: 842.75 | B57: 1178.231077 | C57: 98.1859231 | D57: 1178.231077 | E57: 1200 | F57: 21.76892275
A58: 868 | B58: 1213.532572 | C58: 101.1277143 | D58: 1213.532572 | E58: 1200 | F58: -13.532572
A59: 917.14 | B59: 1282.234174 | C59: 106.8528478 | D59: =B59 -> 1282.234174 | E59: 1300 | F59: 17.76582594
A60: 920 | B60: 1286.23268 | C60: 107.1860567 | D60: 1286.23268 | E60: 1300 | F60: 13.76732
A61: 925 | B61: 1293.223075 | C61: 107.7685896 | D61: 1293.223075 | E61: 1300 | F61: 6.776925
A62: 950 | B62: =IF(A62<1000,$B$1*A62,ROUND($B$1*A62,0)) -> 1328.17505 | C62: 110.6812542 | D62: 1328.17505 | E62: 1300 | F62: -28.17505
A63: 1000 | B63: =IF(A63<1000,$B$1*A63,ROUND($B$1*A63,0)) -> 1398 | C63: 116.5 | D63: 1398 | E63: 1400 | F63: 2
A64: 1050 | B64: =IF(A64<1000,$B$1*A64,ROUND($B$1*A64,0)) -> 1468 | C64: 122.3333333 | D64: 1468 | E64: 1500 | F64: 32
A65: 1100 | B65: =IF(A65<1000,$B$1*A65,ROUND($B$1*A65,0)) -> 1538 | C65: 128.1666667 | D65: 1538 | E65: 1500 | F65: -38
A66: 1200 | B66: 1678 | C66: 139.8333333 | D66: 1678 | E66: 1700 | F66: 22
A67: 1245 | B67: 1741 | C67: 145.0833333 | D67: =B67 -> 1741 | E67: 1700 | F67: =E67-D67 -> -41
A68: 1300 | B68: 1818 | C68: 151.5 | D68: 1818 | E68: 1800 | F68: -18
A69: 1327 | B69: 1855 | C69: 154.5833333 | D69: 1855 | E69: 1900 | F69: 45
A70: 1400 | B70: 1957 | C70: 163.0833333 | D70: 1957 | E70: 2000 | F70: 43
A71: 1500 | B71: 2097 | C71: 174.75 | D71: 2097 | E71: 2100 | F71: 3
A72: 1600 | B72: 2237 | C72: 186.4166667 | D72: 2237 | E72: 2200 | F72: -37
A73: 1700 | B73: 2377 | C73: 198.0833333 | D73: 2377 | E73: 2400 | F73: 23
A74: 1750 | B74: 2447 | C74: 203.9166667 | D74: 2447 | E74: 2400 | F74: -47
A75: 1800 | B75: 2517 | C75: 209.75 | D75: 2517 | E75: 2500 | F75: -17
A76: 1900 | B76: 2656 | C76: 221.3333333 | D76: 2656 | E76: 2700 | F76: 44
A77: 2000 | B77: 2796 | C77: 233 | D77: 2796 | E77: 2800 | F77: 4
A78: 2050 | B78: 2866 | C78: 238.8333333 | D78: 2866 | E78: 2900 | F78: 34
A79: 2100 | B79: 2936 | C79: 244.6666667 | D79: 2936 | E79: 2900 | F79: -36
A80: 2145 | B80: 2999 | C80: 249.9166667 | D80: 2999 | E80: 3000 | F80: 1
A81: 2150 | B81: 3006 | C81: 250.5 | D81: 3006 | E81: 3000 | F81: -6
A82: 2200 | B82: 3076 | C82: 256.3333333 | D82: 3076 | E82: 3100 | F82: 24
A83: 2300 | B83: 3216 | C83: 268 | D83: 3216 | E83: 3200 | F83: -16
A84: 2400 | B84: 3355 | C84: 279.5833333 | D84: 3355 | E84: 3400 | F84: 45
A85: 2450 | B85: 3425 | C85: 285.4166667 | D85: 3425 | E85: 3400 | F85: -25
A86: 2500 | B86: 3495 | C86: 291.25 | D86: 3495 | E86: 3500 | F86: 5
A87: 2600 | B87: 3635 | C87: 302.9166667 | D87: 3635 | E87: 3600 | F87: -35
A88: 2700 | B88: 3775 | C88: 314.5833333 | D88: 3775 | E88: 3800 | F88: 25
A89: 2730 | B89: 3817 | C89: 318.0833333 | D89: 3817 | E89: 3800 | F89: -17
A90: 2800 | B90: 3915 | C90: 326.25 | D90: 3915 | E90: 3900 | F90: -15
A91: 2900 | B91: 4054 | C91: 337.8333333 | D91: 4054 | E91: 4100 | F91: 46
A92: 3000 | B92: 4194 | C92: 349.5 | D92: 4194 | E92: 4200 | F92: 6
A93: 3100 | B93: 4334 | C93: 361.1666667 | D93: 4334 | E93: 4300 | F93: -34
A94: 3200 | B94: 4474 | C94: 372.8333333 | D94: 4474 | E94: 4500 | F94: 26
A95: 3300 | B95: 4614 | C95: 384.5 | D95: 4614 | E95: 4600 | F95: -14
A96: 3400 | B96: 4753 | C96: 396.0833333 | D96: 4753 | E96: 4800 | F96: 47
A97: 3500 | B97: 4893 | C97: 407.75 | D97: 4893 | E97: 4900 | F97: 7
A98: 3600 | B98: 5033 | C98: 419.4166667 | D98: 5033 | E98: 5000 | F98: -33
A99: 3700 | B99: 5173 | C99: 431.0833333 | D99: 5173 | E99: 5200 | F99: 27
A100: 3800 | B100: 5313 | C100: 442.75 | D100: 5313 | E100: 5300 | F100: -13
A101: 3900 | B101: 5453 | C101: 454.4166667 | D101: 5453 | E101: 5500 | F101: 47
A102: 4000 | B102: 5592 | C102: 466 | D102: 5592 | E102: 5600 | F102: 8
A103: 4100 | B103: 5732 | C103: 477.6666667 | D103: 5732 | E103: 5700 | F103: -32
A104: 4200 | B104: 5872 | C104: 489.3333333 | D104: 5872 | E104: 5900 | F104: 28
A105: 4226.1 | B105: 5908 | C105: 492.3333333 | D105: 5908 | E105: 5900 | F105: -8
A106: 4300 | B106: 6012 | C106: 501 | D106: 6012 | E106: 6000 | F106: -12
A107: 4400 | B107: 6152 | C107: 512.6666667 | D107: 6152 | E107: 6200 | F107: 48
A108: 4430 | B108: 6193 | C108: 516.0833333 | D108: 6193 | E108: 6200 | F108: 7
A109: 4500 | B109: 6291 | C109: 524.25 | D109: 6291 | E109: 6300 | F109: 9
A110: 4600 | B110: 6431 | C110: 535.9166667 | D110: 6431 | E110: 6400 | F110: -31
A111: 4700 | B111: 6571 | C111: 547.5833333 | D111: 6571 | E111: 6600 | F111: 29
A112: 1770 | B112: 2475 | C112: 206.25 | D112: 2475 | E112: 2500 | F112: 25
A113: 4800 | B113: 6711 | C113: 559.25 | D113: 6711 | E113: 6700 | F113: -11
A114: 4900 | B114: 6851 | C114: 570.9166667 | D114: 6851 | E114: 6900 | F114: 49
A115: 4930 | B115: 6893 | C115: 574.4166667 | D115: 6893 | E115: 6900 | F115: 7
A116: 5000 | B116: 6990 | C116: 582.5 | D116: 6990 | E116: 7000 | F116: 10
A117: 5100 | B117: 7130 | C117: 594.1666667 | D117: 7130 | E117: 7100 | F117: -30
A118: 5200 | B118: 7270 | C118: =VALUE(B118)/12 -> 605.8333333 | D118: 7270 | E118: 7300 | F118: 30
A119: 5300 | B119: 7410 | C119: 617.5 | D119: 7410 | E119: 7400 | F119: -10
A120: 5318 | B120: 7435 | C120: 619.5833333 | D120: 7435 | E120: =IF(D120<1000,D120,ROUND(D120,-2)) -> 7400 | F120: -35
A121: 5400 | B121: 7550 | C121: 629.1666667 | D121: 7550 | E121: 7600 | F121: 50
A122: 5420.91 | B122: 7579 | C122: 631.5833333 | D122: 7579 | E122: 7600 | F122: 21
A123: 5500 | B123: 7689 | C123: 640.75 | D123: =B123 -> 7689 | E123: 7700 | F123: =E123-D123 -> 11
A124: 5600 | B124: 7829 | C124: 652.4166667 | D124: 7829 | E124: 7800 | F124: -29
A125: 5700 | B125: 7969 | C125: 664.0833333 | D125: 7969 | E125: 8000 | F125: 31
A126: 5770.78 | B126: 8068 | C126: 672.3333333 | D126: 8068 | E126: 8100 | F126: 32
A127: 5800 | B127: 8109 | C127: 675.75 | D127: 8109 | E127: 8100 | F127: -9
A128: 5900 | B128: 8249 | C128: 687.4166667 | D128: 8249 | E128: 8200 | F128: -49
A129: 6000 | B129: =IF(A129<1000,$B$1*A129,ROUND($B$1*A129,0)) -> 8388 | C129: 699 | D129: 8388 | E129: 8400 | F129: 12
A130: 6078 | B130: 8498 | C130: 708.1666667 | D130: 8498 | E130: 8500 | F130: 2
A131: 6100 | B131: 8528 | C131: 710.6666667 | D131: 8528 | E131: 8500 | F131: -28
A132: 6140 | B132: 8584 | C132: 715.3333333 | D132: 8584 | E132: 8600 | F132: 16
A133: 6200 | B133: 8668 | C133: 722.3333333 | D133: 8668 | E133: 8700 | F133: 32
A134: 6290.15 | B134: 8794 | C134: 732.8333333 | D134: 8794 | E134: 8800 | F134: 6
A135: 6300 | B135: 8808 | C135: 734 | D135: 8808 | E135: 8800 | F135: -8
A136: 6400 | B136: 8948 | C136: 745.6666667 | D136: 8948 | E136: 8900 | F136: -48
A137: 6500 | B137: 9088 | C137: 757.3333333 | D137: 9088 | E137: 9100 | F137: 12
A138: 6600 | B138: 9227 | C138: 768.9166667 | D138: 9227 | E138: 9200 | F138: -27
A139: 6700 | B139: 9367 | C139: 780.5833333 | D139: 9367 | E139: 9400 | F139: 33
A140: 6743.33 | B140: 9428 | C140: 785.6666667 | D140: 9428 | E140: 9400 | F140: -28
A141: 6800 | B141: 9507 | C141: 792.25 | D141: 9507 | E141: 9500 | F141: -7
A142: 6900 | B142: 9647 | C142: 803.9166667 | D142: 9647 | E142: 9600 | F142: -47
A143: 7000 | B143: 9787 | C143: 815.5833333 | D143: 9787 | E143: 9800 | F143: 13
A144: 7100 | B144: 9926 | C144: 827.1666667 | D144: 9926 | E144: 9900 | F144: -26
A145: 7200 | B145: 10066 | C145: 838.8333333 | D145: 10066 | E145: 10100 | F145: 34
A146: 7300 | B146: 10206 | C146: 850.5 | D146: 10206 | E146: 10200 | F146: -6
A147: 7335.23 | B147: 10255 | C147: 854.5833333 | D147: 10255 | E147: 10300 | F147: 45
A148: 7400 | B148: 10346 | C148: 862.1666667 | D148: 10346 | E148: 10300 | F148: -46
A149: 7500 | B149: 10486 | C149: 873.8333333 | D149: 10486 | E149: 10500 | F149: 14
A150: 7600 | B150: 10625 | C150: 885.4166667 | D150: 10625 | E150: 10600 | F150: -25
A151: 7700 | B151: 10765 | C151: 897.0833333 | D151: 10765 | E151: 10800 | F151: 35
A152: 7800 | B152: 10905 | C152: 908.75 | D152: 10905 | E152: 10900 | F152: -5
A153: 7900 | B153: 11045 | C153: 920.4166667 | D153: 11045 | E153: 11000 | F153: -45
A154: 8000 | B154: 11185 | C154: 932.0833333 | D154: 11185 | E154: 11200 | F154: 15
A155: 8100 | B155: 11324 | C155: 943.6666667 | D155: 11324 | E155: 11300 | F155: -24
A156: 8200 | B156: 11464 | C156: 955.3333333 | D156: 11464 | E156: 11500 | F156: 36
A157: 8300 | B157: 11604 | C157: 967 | D157: 11604 | E157: 11600 | F157: -4
A158: 8400 | B158: 11744 | C158: 978.6666667 | D158: 11744 | E158: 11700 | F158: -44
A159: 8500 | B159: 11884 | C159: 990.3333333 | D159: 11884 | E159: 11900 | F159: 16
A160: 8600 | B160: 12023 | C160: 1001.916667 | D160: 12023 | E160: 12000 | F160: -23
A161: 8700 | B161: 12163 | C161: 1013.583333 | D161: 12163 | E161: 12200 | F161: 37
A162: 8800 | B162: 12303 | C162: 1025.25 | D162: 12303 | E162: 12300 | F162: -3
A163: 8900 | B163: 12443 | C163: 1036.916667 | D163: 12443 | E163: 12400 | F163: -43
A164: 9000 | B164: 12583 | C164: 1048.583333 | D164: 12583 | E164: 12600 | F164: 17
A165: 9100 | B165: 12723 | C165: 1060.25 | D165: 12723 | E165: 12700 | F165: -23
A166: 9200 | B166: 12862 | C166: 1071.833333 | D166: 12862 | E166: 12900 | F166: 38
A167: 9300 | B167: 13002 | C167: 1083.5 | D167: 13002 | E167: 13000 | F167: -2
A168: 9400 | B168: 13142 | C168: 1095.166667 | D168: 13142 | E168: 13100 | F168: -42
A169: 9450 | B169: 13212 | C169: 1101 | D169: 13212 | E169: 13200 | F169: -12
A170: 9500 | B170: 13282 | C170: 1106.833333 | D170: 13282 | E170: 13300 | F170: 18
A171: 9600 | B171: 13422 | C171: 1118.5 | D171: 13422 | E171: 13400 | F171: -22
A172: 9700 | B172: 13561 | C172: 1130.083333 | D172: 13561 | E172: 13600 | F172: 39
A173: 9800 | B173: 13701 | C173: 1141.75 | D173: 13701 | E173: 13700 | F173: -1
A174: 9900 | B174: 13841 | C174: 1153.416667 | D174: 13841 | E174: 13800 | F174: -41
A175: 10000 | B175: 13981 | C175: 1165.083333 | D175: 13981 | E175: 14000 | F175: 19
A176: 10600 | B176: 14820 | C176: 1235 | D176: 14820 | E176: 14800 | F176: -20
A177: 10800 | B177: 15099 | C177: 1258.25 | D177: 15099 | E177: 15100 | F177: 1
A178: 11000 | B178: 15379 | C178: 1281.583333 | D178: 15379 | E178: 15400 | F178: 21
A179: 11200 | B179: 15658 | C179: 1304.833333 | D179: 15658 | E179: 15700 | F179: 42
A180: 11300 | B180: 15798 | C180: 1316.5 | D180: 15798 | E180: 15800 | F180: 2
A181: 11500 | B181: 16078 | C181: 1339.833333 | D181: 16078 | E181: 16100 | F181: 22
A182: 11600 | B182: 16218 | C182: =VALUE(B182)/12 -> 1351.5 | D182: 16218 | E182: 16200 | F182: -18
A183: 11700 | B183: 16358 | C183: 1363.166667 | D183: 16358 | E183: 16400 | F183: 42
A184: 11800 | B184: 16497 | C184: 1374.75 | D184: 16497 | E184: =IF(D184<1000,D184,ROUND(D184,-2)) -> 16500 | F184: 3
A185: 11900 | B185: 16637 | C185: 1386.416667 | D185: 16637 | E185: 16600 | F185: -37
A186: 12000 | B186: 16777 | C186: 1398.083333 | D186: 16777 | E186: 16800 | F186: 23
A187: 12100 | B187: 16917 | C187: 1409.75 | D187: =B187 -> 16917 | E187: 16900 | F187: =E187-D187 -> -17
A188: 12200 | B188: 17057 | C188: 1421.416667 | D188: 17057 | E188: 17100 | F188: 43
A189: 12300 | B189: 17196 | C189: 1433 | D189: 17196 | E189: 17200 | F189: 4
A190: 12400 | B190: 17336 | C190: 1444.666667 | D190: 17336 | E190: 17300 | F190: -36
A191: 12500 | B191: 17476 | C191: 1456.333333 | D191: 17476 | E191: 17500 | F191: 24
A192: 12600 | B192: 17616 | C192: 1468 | D192: 17616 | E192: 17600 | F192: -16
A193: 12700 | B193: =IF(A193<1000,$B$1*A193,ROUND($B$1*A193,0)) -> 17756 | C193: 1479.666667 | D193: 17756 | E193: 17800 | F193: 44
A194: 12800 | B194: 17895 | C194: 1491.25 | D194: 17895 | E194: 17900 | F194: 5
A195: 12900 | B195: 18035 | C195: 1502.916667 | D195: 18035 | E195: 18000 | F195: -35
A196: 13000 | B196: 18175 | C196: 1514.583333 | D196: 18175 | E196: 18200 | F196: 25
A197: 13200 | B197: 18455 | C197: 1537.916667 | D197: 18455 | E197: 18500 | F197: 45
A198: 13400 | B198: 18734 | C198: 1561.166667 | D198: 18734 | E198: 18700 | F198: -34
A199: 13500 | B199: 18874 | C199: 1572.833333 | D199: 18874 | E199: 18900 | F199: 26
A200: 13700 | B200: 19154 | C200: 1596.166667 | D200: 19154 | E200: 19200 | F200: 46
... 195 more rows

Sheet reguleringsprocenter (hidden)
B2: Reguleringsprocenter | D2: pensionsudbygning
B3: Valgt: | C3: =VLOOKUP(Forside!K11,reguleringsprocenter!B4:D15,2,TRUE) -> 1.141109
B4: 2020-01-01 | C4: 1.045075 | D4: 1
B5: 2020-04-01 | C5: 1.049075 | D5: 1
B6: 2020-10-01 | C6: 1.053224 | D6: 1
B7: 2021-04-01 | C7: 1.061123 | D7: 1
B8: 2021-10-01 | C8: 1.064474 | D8: 1
B9: 2022-04-01 | C9: 1.064474 | D9: 1
B10: 2022-10-01 | C10: 1.083866 | D10: 1
B11: 2023-01-01 | C11: 1.091976 | D11: 1
B12: 2023-10-01 | C12: 1.09722 | D12: 1
B13: 2024-04-01 | C13: 1.141109 | D13: 1
D14: 1
B18: Liste, opslag niveauer
B20: 2024-04-01
B21: 2023-10-01
B22: 2023-01-01
B23: 2022-10-01
B24: 2022-04-01
B25: 2021-10-01
B26: 2021-04-01
B27: 2020-10-01
B28: 2020-04-01
B29: 2020-01-01

Sheet Lønark (hidden)
A1: Næstved | X1: Løn | Y1: Årsløn | AB1: Ureguleret ikke-pensionsgivende tillæg | AF1: Årsløn ialt
X2: trin | Y2: Grundsats | Z2: %-reg. | AA2: Sats | AB2: Omr 1 | AC2: Omr 2 | AD2: Omr 3 | AE2: Omr 4 | AL2: Områdetillæg inkl. regulering | AQ2: Årsløn i alt | AW2: Pensionsgivende årsløn i alt | BB2: Pensionsgivende løn | BK2: Pensionsgivende løn | BQ2: Løn | BR2: timelønninger | BX2: Løn | BY2: timelønninger + 50% | CE2: Løn | CF2: søndagstillæg - 50% | DB2: 1.344105
B3: Månedsløn, løngrupper | E3: Lønniveau: | F3: =VLOOKUP(beregningsdato,regpct_tabel,1,TRUE) -> 2024-04-01 | H3: Optrapning fra: | M3: Pensionsgivende løn | S3: Pensionsgivende løn, optrapning fra: | AL3: 1 | AM3: 2 | AN3: 3 | AO3: 4 | AQ3: Omr 0 | AR3: Omr 1 | AS3: Omr 2 | AT3: Omr 3 | AU3: Omr 4 | AW3: Omr 0 | AX3: Omr 1 | AY3: Omr 2 | AZ3: Omr 3 | BA3: Omr 4 | BB3: Grundsats | BC3: %-reg. | BD3: Sats | BF3: Pensionsudbygningspct: | BI3: =VLOOKUP(F3,regpct_tabel,3,FALSE) -> 1 | BK3: Omr 0 | BL3: Omr 1 | BM3: Omr 2 | BN3: Omr 3 | BO3: Omr 4 | BQ3: trin | BR3: Omr 0 | BS3: Omr 1 | BT3: Omr 2 | BU3: Omr 3 | BV3: Omr 4 | BX3: trin | BY3: Omr 0 | BZ3: Omr 1 | CA3: Omr 2 | CB3: Omr 3 | CC3: Omr 4 | CE3: trin | CF3: Omr 0 | CG3: Omr 1 | CH3: Omr 2 | CI3: Omr 3 | CJ3: Omr 4 | CY3: niveau | CZ3: kolonne | DB3: 2017-10-01 | DF3: 2018-10-01
B4: 0 | C4: 1 | D4: 2 | E4: 3 | F4: 4 | H4: 0->1 | I4: 1->2 | J4: 2->3 | M4: 0 | N4: 1 | O4: 2 | P4: 3 | Q4: 4 | S4: 0->1 | T4: 1->2 | U4: 2->3 | V4: 3->4 | Y4: =VLOOKUP(beregningsdato,Lønprojekt_DR,2,TRUE) -> 1339 | Z4: =valgt_regulering-1 -> 0.141109 | AA4: 2019-04-01 | AB4: 2022-04-01 | AC4: =VLOOKUP(beregningsdato,Lønprojekt_DR,3,TRUE) -> 620 | AD4: 4 | AE4: 5 | AL4: =IF(beregningsdato<40087,0,regulering) -> 0.141109 | AM4: =IF(beregningsdato<40087,0,5) -> 5 | CM4: 2017-10-01 | CN4: 2018-10-01 | CO4: 2019-04-01 | CQ4: omr1 | CR4: omr2 | CS4: omr3 | CT4: omr4 | CU4: omr5 | CY4: 2017-10-01 | CZ4: 2 | DB4: omr1 | DC4: omr2 | DD4: omr3 | DE4: omr4 | DF4: omr1 | DG4: omr2 | DH4: omr3 | DI4: omr4 | DN4: 2015-01-01 | DO4: 0 | DP4: 0
A5: 1 | B5: =AQ5/12 -> 18813.5 | C5: 19078.83333 | D5: 19262.5 | E5: 19528 | F5: 19711.66667 | H5: =ROUND(AQ5+(AR5-AQ5)/3*faktor,0)/12 -> 518966.8333 | I5: =ROUND(AR5+(AS5-AR5)/3*faktor,0)/12 -> 365290.5 | J5: =ROUND(AS5+(AT5-AS5)/3*faktor,0)/12 -> 519730 | L5: 1 | M5: =B5 -> 18813.5 | N5: =C5 -> 19078.83333 | O5: =D5 -> 19262.5 | P5: =E5 -> 19528 | Q5: =F5 -> 19711.66667 | S5: =(BK5+ROUND((BL5-BK5)/3*faktor,0))/12 -> 500153.3333 | T5: =(BL5+ROUND((BM5-BL5)/3*faktor,0))/12 -> 346477 | U5: =(BM5+ROUND((BN5-BM5)/3*faktor,0))/12 -> 500916.5 | V5: =(BN5+ROUND((BO5-BN5)/3*faktor,0))/12 -> 346926.1667 | X5: 1 | Y5: 197844 | Z5: =ROUND(Y5*regulering,0) -> 27918 | AA5: =Y5+Z5 -> 225762 | AB5: 2790 | AC5: 4722 | AD5: 7514 | AE5: 9445 | AG5: 2076 | AH5: 3513 | AI5: 5590 | AJ5: 7027 | AL5: =ROUND(AB5*(1+$AL$4),0) -> 3184 | AM5: =ROUND(AC5*(1+$AL$4),0) -> 5388 | AN5: 8574 | AO5: 10778 | AP5: 1 | AQ5: =$AA5 -> 225762 | AR5: =$AA5+AL5 -> 228946 | AS5: =$AA5+AM5 -> 231150 | AT5: 234336 | AU5: 236540 | AV5: 1 | AW5: =AQ5 -> 225762 | AX5: =AR5 -> 228946 | AY5: =AS5 -> 231150 | AZ5: =AT5 -> 234336 | BA5: =AU5 -> 236540 | BF5: =ROUND(AL5*udbygningspct,0) -> 3184 | BG5: =ROUND(AM5*udbygningspct,0) -> 5388 | BH5: =ROUND(AN5*udbygningspct,0) -> 8574 | BI5: =ROUND(AO5*udbygningspct,0) -> 10778 | BK5: =BD5 -> 0 | BL5: =$BK5+BF5 -> 3184 | BM5: =$BK5+BG5 -> 5388 | BN5: =$BK5+BH5 -> 8574 | BO5: =$BK5+BI5 -> 10778 | BQ5: 1 | BR5: =AQ5/1924 -> 117.3399168 | BS5: =AR5/1924 -> 118.9948025 | BT5: =AS5/1924 -> 120.1403326 | BU5: =AT5/1924 -> 121.7962578 | BV5: =AU5/1924 -> 122.9417879 | BX5: 1 | BY5: =AQ5/1924*1.5 -> 176.0098753 | BZ5: =AR5/1924*1.5 -> 178.4922037 | CA5: =AS5/1924*1.5 -> 180.210499 | CB5: =AT5/1924*1.5 -> 182.6943867 | CC5: =AU5/1924*1.5 -> 184.4126819 | CE5: 1 | CF5: =AQ5/1924/2 -> 58.66995842 | CG5: =AR5/1924/2 -> 59.49740125 | CH5: =AS5/1924/2 -> 60.07016632 | CI5: =AT5/1924/2 -> 60.8981289 | CJ5: =AU5/1924/2 -> 61.47089397 | CL5: 1 | CM5: 147194 | CN5: 197844 | CO5: 197844 | CP5: 4004 | CQ5: 201848 | CR5: 2585 | CS5: 4374 | CT5: 6959 | CU5: 8748 | CY5: 2018-10-01 | CZ5: 3 | DA5: 1 | DB5: 2076 | DC5: 3513 | DD5: 5590 | DE5: 7027 | DF5: =ROUND(DB5*$DB$2,0) -> 2790 | DG5: =ROUND(DC5*$DB$2,0) -> 4722 | DH5: =ROUND(DD5*$DB$2,0) -> 7514 | DI5: =ROUND(DE5*$DB$2,0) -> 9445 | DK5: 147194 | DL5: =ROUND(DK5*$DB$2,0) -> 197844 | DN5: 2019-04-01 | DO5: 719 | DP5: 0
A6: 2 | B6: 19102.41667 | C6: 19374.25 | D6: 19562.41667 | E6: 19834.25 | F6: 20022.41667 | H6: 531508.25 | I6: 374068.4167 | J6: 531968.25 | L6: 2 | M6: =B6 -> 19102.41667 | N6: 19374.25 | O6: 19562.41667 | P6: 19834.25 | Q6: 20022.41667 | S6: 512405.8333 | T6: 354966 | U6: 512865.8333 | V6: 355426 | X6: 2 | Y6: 200883 | Z6: =ROUND(Y6*regulering,0) -> 28346 | AA6: 229229 | AB6: 2859 | AC6: 4837 | AD6: 7696 | AE6: 9675 | AG6: 2127 | AH6: 3599 | AI6: 5726 | AJ6: 7198 | AL6: =ROUND(AB6*(1+$AL$4),0) -> 3262 | AM6: =ROUND(AC6*(1+$AL$4),0) -> 5520 | AN6: =ROUND(AD6*(1+$AL$4),0) -> 8782 | AO6: =ROUND(AE6*(1+$AL$4),0) -> 11040 | AP6: 2 | AQ6: =$AA6 -> 229229 | AR6: =$AA6+AL6 -> 232491 | AS6: 234749 | AT6: 238011 | AU6: 240269 | AV6: 2 | AW6: =AQ6 -> 229229 | AX6: 232491 | AY6: 234749 | AZ6: 238011 | BA6: 240269 | BF6: 3262 | BG6: 5520 | BH6: 8782 | BI6: 11040 | BK6: 0 | BL6: 3262 | BM6: 5520 | BN6: 8782 | BO6: 11040 | BQ6: 2 | BR6: 119.1418919 | BS6: 120.8373181 | BT6: 122.0109148 | BU6: 123.706341 | BV6: 124.8799376 | BX6: 2 | BY6: 178.7128378 | BZ6: 181.2559771 | CA6: 183.0163721 | CB6: 185.5595114 | CC6: 187.3199064 | CE6: 2 | CF6: 59.57094595 | CG6: 60.41865904 | CH6: 61.00545738 | CI6: 61.85317048 | CJ6: 62.43996881 | CL6: 2 | CM6: 149455 | CN6: 200883 | CO6: 200883 | CP6: 4065 | CQ6: 204948 | CR6: 2648 | CS6: 4481 | CT6: 7128 | CU6: 8961 | CY6: 2019-04-01 | CZ6: 4 | DA6: 2 | DB6: 2127 | DC6: 3599 | DD6: 5726 | DE6: 7198 | DF6: =ROUND(DB6*$DB$2,0) -> 2859 | DG6: 4837 | DH6: 7696 | DI6: 9675 | DK6: 149455 | DL6: =ROUND(DK6*$DB$2,0) -> 200883 | DN6: 2022-04-01 | DO6: =DO5+DP6 -> 1339 | DP6: 620
A7: 3 | B7: 19399.25 | C7: 19677.58333 | D7: 19870.5 | E7: 20148.83333 | F7: 20341.75 | H7: 544057.5833 | I7: 383325.5 | J7: 544528.8333 | L7: 3 | M7: 19399.25 | N7: 19677.58333 | O7: 19870.5 | P7: 20148.83333 | Q7: 20341.75 | S7: 524658.3333 | T7: 363926.25 | U7: 525129.5833 | V7: 364397.5 | X7: 3 | Y7: 204004 | Z7: 28787 | AA7: 232791 | AB7: 2927 | AC7: 4956 | AD7: 7883 | AE7: 9911 | AG7: 2178 | AH7: 3687 | AI7: 5865 | AJ7: 7374 | AL7: 3340 | AM7: 5655 | AN7: 8995 | AO7: 11310 | AP7: 3 | AQ7: 232791 | AR7: 236131 | AS7: 238446 | AT7: 241786 | AU7: 244101 | AV7: 3 | AW7: 232791 | AX7: 236131 | AY7: 238446 | AZ7: 241786 | BA7: 244101 | BF7: 3340 | BG7: 5655 | BH7: 8995 | BI7: 11310 | BK7: 0 | BL7: 3340 | BM7: 5655 | BN7: 8995 | BO7: 11310 | BQ7: 3 | BR7: 120.9932432 | BS7: 122.72921 | BT7: 123.9324324 | BU7: 125.6683992 | BV7: 126.8716216 | BX7: 3 | BY7: 181.4898649 | BZ7: 184.093815 | CA7: 185.8986486 | CB7: 188.5025988 | CC7: 190.3074324 | CE7: 3 | CF7: 60.49662162 | CG7: 61.36460499 | CH7: 61.96621622 | CI7: 62.83419958 | CJ7: 63.43581081 | CL7: 3 | CM7: 151777 | CN7: 204004 | CO7: 204004 | CP7: 4129 | CQ7: 208133 | CR7: 2711 | CS7: 4590 | CT7: 7301 | CU7: 9180 | DA7: 3 | DB7: 2178 | DC7: 3687 | DD7: 5865 | DE7: 7374 | DF7: 2927 | DG7: 4956 | DH7: 7883 | DI7: 9911 | DK7: 151777 | DL7: 204004
A8: 4 | B8: 19704.16667 | C8: 19989.41667 | D8: 20187.08333 | E8: 20472.33333 | F8: 20669.83333 | H8: 557400.4167 | I8: 392591.0833 | J8: 557883.3333 | L8: 4 | M8: 19704.16667 | N8: 19989.41667 | O8: 20187.08333 | P8: 20472.33333 | Q8: 20669.83333 | S8: 537696.25 | T8: 372886.9167 | U8: 538179.1667 | V8: 373055.6667 | X8: 4 | Y8: 207211 | Z8: 29239 | AA8: 236450 | AB8: 3000 | AC8: 5078 | AD8: 8078 | AE8: 10155 | AG8: 2232 | AH8: 3778 | AI8: 6010 | AJ8: 7555 | AL8: 3423 | AM8: 5795 | AN8: 9218 | AO8: 11588 | AP8: 4 | AQ8: 236450 | AR8: 239873 | AS8: 242245 | AT8: 245668 | AU8: 248038 | AV8: 4 | AW8: 236450 | AX8: 239873 | AY8: 242245 | AZ8: 245668 | BA8: 248038 | BF8: 3423 | BG8: 5795 | BH8: 9218 | BI8: 11588 | BK8: 0 | BL8: 3423 | BM8: 5795 | BN8: 9218 | BO8: 11588 | BQ8: 4 | BR8: 122.8950104 | BS8: 124.6741164 | BT8: 125.9069647 | BU8: 127.6860707 | BV8: 128.9178794 | BX8: 4 | BY8: 184.3425156 | BZ8: 187.0111746 | CA8: 188.860447 | CB8: 191.529106 | CC8: 193.3768191 | CE8: 4 | CF8: 61.4475052 | CG8: 62.33705821 | CH8: 62.95348233 | CI8: 63.84303534 | CJ8: 64.45893971 | CL8: 4 | CM8: 154163 | CN8: 207211 | CO8: 207211 | CP8: 4194 | CQ8: 211405 | CR8: 2779 | CS8: 4703 | CT8: 7482 | CU8: 9405 | DA8: 4 | DB8: 2232 | DC8: 3778 | DD8: 6010 | DE8: 7555 | DF8: 3000 | DG8: 5078 | DH8: 8078 | DI8: 10155 | DK8: 154163 | DL8: 207211
A9: 5 | B9: 20017.5 | C9: 20309.83333 | D9: 20512.25 | E9: 20804.58333 | F9: 21006.75 | H9: 571065.8333 | I9: 401865.25 | J9: 571560.5833 | L9: 5 | M9: 20017.5 | N9: 20309.83333 | O9: 20512.25 | P9: 20804.58333 | Q9: 21006.75 | S9: 551048.3333 | T9: 381847.75 | U9: 551543.0833 | V9: 381871.25 | X9: 5 | Y9: 210506 | Z9: 29704 | AA9: 240210 | AB9: 3074 | AC9: 5203 | AD9: 8277 | AE9: 10403 | AG9: 2287 | AH9: 3871 | AI9: 6158 | AJ9: 7740 | AL9: 3508 | AM9: 5937 | AN9: 9445 | AO9: 11871 | AP9: 5 | AQ9: 240210 | AR9: 243718 | AS9: 246147 | AT9: 249655 | AU9: 252081 | AV9: 5 | AW9: 240210 | AX9: 243718 | AY9: 246147 | AZ9: 249655 | BA9: 252081 | BF9: 3508 | BG9: 5937 | BH9: 9445 | BI9: 11871 | BK9: 0 | BL9: 3508 | BM9: 5937 | BN9: 9445 | BO9: 11871 | BQ9: 5 | BR9: 124.8492723 | BS9: 126.6725572 | BT9: 127.9350312 | BU9: 129.758316 | BV9: 131.0192308 | BX9: 5 | BY9: 187.2739085 | BZ9: 190.0088358 | CA9: 191.9025468 | CB9: 194.637474 | CC9: 196.5288462 | CE9: 5 | CF9: 62.42463617 | CG9: 63.33627859 | CH9: 63.96751559 | CI9: 64.879158 | CJ9: 65.50961538 | CL9: 5 | CM9: 156614 | CN9: 210506 | CO9: 210506 | CP9: 4260 | CQ9: 214766 | CR9: 2847 | CS9: 4819 | CT9: 7666 | CU9: 9636 | DA9: 5 | DB9: 2287 | DC9: 3871 | DD9: 6158 | DE9: 7740 | DF9: 3074 | DG9: 5203 | DH9: 8277 | DI9: 10403 | DK9: 156614 | DL9: 210506
A10: 6 | B10: 20339.66667 | C10: 20639.08333 | D10: 20846.58333 | E10: 21146.08333 | F10: 21353.33333 | H10: 584740.0833 | I10: 411776.5833 | J10: 585404.0833 | L10: 6 | M10: 20339.66667 | N10: 20639.08333 | O10: 20846.58333 | P10: 21146.08333 | Q10: 21353.33333 | S10: 564400.4167 | T10: 391436.9167 | U10: 565064.4167 | V10: 391472.6667 | X10: 6 | Y10: 213894 | Z10: 30182 | AA10: 244076 | AB10: 3149 | AC10: 5331 | AD10: 8480 | AE10: 10660 | AG10: 2343 | AH10: 3966 | AI10: 6309 | AJ10: 7931 | AL10: 3593 | AM10: 6083 | AN10: 9677 | AO10: 12164 | AP10: 6 | AQ10: 244076 | AR10: 247669 | AS10: 250159 | AT10: 253753 | AU10: 256240 | AV10: 6 | AW10: 244076 | AX10: 247669 | AY10: 250159 | AZ10: 253753 | BA10: 256240 | BF10: 3593 | BG10: 6083 | BH10: 9677 | BI10: 12164 | BK10: 0 | BL10: 3593 | BM10: 6083 | BN10: 9677 | BO10: 12164 | BQ10: 6 | BR10: 126.8586279 | BS10: 128.7260915 | BT10: 130.0202703 | BU10: 131.8882536 | BV10: 133.1808732 | BX10: 6 | BY10: 190.2879418 | BZ10: 193.0891372 | CA10: 195.0304054 | CB10: 197.8323805 | CC10: 199.7713098 | CE10: 6 | CF10: 63.42931393 | CG10: 64.36304574 | CH10: 65.01013514 | CI10: 65.94412682 | CJ10: 66.59043659 | CL10: 6 | CM10: 159135 | CN10: 213894 | CO10: 213894 | CP10: 4329 | CQ10: 218223 | CR10: 2917 | CS10: 4937 | CT10: 7854 | CU10: 9873 | DA10: 6 | DB10: 2343 | DC10: 3966 | DD10: 6309 | DE10: 7931 | DF10: 3149 | DG10: 5331 | DH10: 8480 | DI10: 10660 | DK10: 159135 | DL10: 213894
A11: 7 | B11: 20670.25 | C11: 20977.08333 | D11: 21189.83333 | E11: 21496.58333 | F11: 21709 | H11: 599051.0833 | I11: 422010.8333 | J11: 599413.5833 | L11: 7 | M11: 20670.25 | N11: 20977.08333 | O11: 21189.83333 | P11: 21496.58333 | Q11: 21709 | S11: 578380.8333 | T11: 401340.5833 | U11: 578743.3333 | V11: 401231.75 | X11: 7 | Y11: 217370 | Z11: 30673 | AA11: 248043 | AB11: 3227 | AC11: 5464 | AD11: 8690 | AE11: 10924 | AG11: 2401 | AH11: 4065 | AI11: 6465 | AJ11: 8127 | AL11: 3682 | AM11: 6235 | AN11: 9916 | AO11: 12465 | AP11: 7 | AQ11: 248043 | AR11: =$AA11+AL11 -> 251725 | AS11: 254278 | AT11: 257959 | AU11: 260508 | AV11: 7 | AW11: 248043 | AX11: 251725 | AY11: 254278 | AZ11: 257959 | BA11: 260508 | BF11: 3682 | BG11: 6235 | BH11: 9916 | BI11: 12465 | BK11: 0 | BL11: 3682 | BM11: 6235 | BN11: 9916 | BO11: 12465 | BQ11: 7 | BR11: 128.9204782 | BS11: 130.8341996 | BT11: 132.1611227 | BU11: 134.0743243 | BV11: 135.3991684 | BX11: 7 | BY11: 193.3807173 | BZ11: 196.2512994 | CA11: 198.241684 | CB11: 201.1114865 | CC11: 203.0987526 | CE11: 7 | CF11: 64.46023909 | CG11: 65.41709979 | CH11: 66.08056133 | CI11: 67.03716216 | CJ11: 67.6995842 | CL11: 7 | CM11: 161721 | CN11: 217370 | CO11: 217370 | CP11: 4399 | CQ11: 221769 | CR11: 2989 | CS11: 5060 | CT11: 8049 | CU11: 10118 | DA11: 7 | DB11: 2401 | DC11: 4065 | DD11: 6465 | DE11: 8127 | DF11: 3227 | DG11: 5464 | DH11: 8690 | DI11: 10924 | DK11: 161721 | DL11: 217370
A12: 8 | B12: 21022.5 | C12: 21337.41667 | D12: 21555.41667 | E12: 21870.16667 | F12: 22088.08333 | H12: 614640.4167 | I12: 432267.4167 | J12: 614859.1667 | L12: 8 | M12: 21022.5 | N12: 21337.41667 | O12: 21555.41667 | P12: 21870.16667 | Q12: 22088.08333 | S12: 593617.9167 | T12: 411244.9167 | U12: 593836.6667 | V12: 411620.5833 | X12: 8 | Y12: 221074 | Z12: 31196 | AA12: 252270 | AB12: 3312 | AC12: 5604 | AD12: 8914 | AE12: 11206 | AG12: 2464 | AH12: 4169 | AI12: 6632 | AJ12: 8337 | AL12: 3779 | AM12: 6395 | AN12: 10172 | AO12: 12787 | AP12: 8 | AQ12: 252270 | AR12: 256049 | AS12: 258665 | AT12: 262442 | AU12: 265057 | AV12: 8 | AW12: 252270 | AX12: 256049 | AY12: 258665 | AZ12: 262442 | BA12: 265057 | BF12: 3779 | BG12: 6395 | BH12: 10172 | BI12: 12787 | BK12: 0 | BL12: 3779 | BM12: 6395 | BN12: 10172 | BO12: 12787 | BQ12: 8 | BR12: 131.1174636 | BS12: 133.0816008 | BT12: 134.4412682 | BU12: 136.4043659 | BV12: 137.7635135 | BX12: 8 | BY12: 196.6761954 | BZ12: 199.6224012 | CA12: 201.6619023 | CB12: 204.6065489 | CC12: 206.6452703 | CE12: 8 | CF12: 65.55873181 | CG12: 66.54080042 | CH12: 67.2206341 | CI12: 68.20218295 | CJ12: 68.88175676 | CL12: 8 | CM12: 164477 | CN12: 221074 | CO12: 221074 | CP12: 4474 | CQ12: 225548 | CR12: 3067 | CS12: 5190 | CT12: 8256 | CU12: 10379 | DA12: 8 | DB12: 2464 | DC12: 4169 | DD12: 6632 | DE12: 8337 | DF12: 3312 | DG12: 5604 | DH12: 8914 | DI12: 11206 | DK12: 164477 | DL12: 221074
A13: 9 | B13: 21683.83333 | C13: 22006.58333 | D13: 22229.91667 | E13: 22552.5 | F13: 22775.83333 | H13: =ROUND(AQ13+(AR13-AQ13)/3*faktor,0)/12 -> 630067.5833 | I13: =ROUND(AR13+(AS13-AR13)/3*faktor,0)/12 -> 442989.9167 | J13: =ROUND(AS13+(AT13-AS13)/3*faktor,0)/12 -> 630299.5 | L13: 9 | M13: 21683.83333 | N13: 22006.58333 | O13: 22229.91667 | P13: 22552.5 | Q13: 22775.83333 | S13: =(BK13+ROUND((BL13-BK13)/3*faktor,0))/12 -> 608383.75 | T13: =(BL13+ROUND((BM13-BL13)/3*faktor,0))/12 -> 421306.0833 | U13: =(BM13+ROUND((BN13-BM13)/3*faktor,0))/12 -> 608615.6667 | V13: =(BN13+ROUND((BO13-BN13)/3*faktor,0))/12 -> 421852 | X13: 9 | Y13: 228029 | Z13: 32177 | AA13: 260206 | AB13: 3394 | AC13: 5743 | AD13: 9135 | AE13: 11484 | AG13: 2525 | AH13: 4273 | AI13: 6796 | AJ13: 8544 | AL13: 3873 | AM13: 6553 | AN13: 10424 | AO13: 13104 | AP13: 9 | AQ13: 260206 | AR13: 264079 | AS13: 266759 | AT13: 270630 | AU13: 273310 | AV13: 9 | AW13: 260206 | AX13: 264079 | AY13: 266759 | AZ13: 270630 | BA13: 273310 | BF13: 3873 | BG13: 6553 | BH13: 10424 | BI13: 13104 | BK13: 0 | BL13: 3873 | BM13: 6553 | BN13: 10424 | BO13: 13104 | BQ13: 9 | BR13: 135.2422037 | BS13: 137.2551975 | BT13: 138.6481289 | BU13: 140.6600832 | BV13: 142.0530146 | BX13: 9 | BY13: 202.8633056 | BZ13: 205.8827963 | CA13: 207.9721933 | CB13: 210.9901247 | CC13: 213.0795218 | CE13: 9 | CF13: 67.62110187 | CG13: 68.62759875 | CH13: 69.32406445 | CI13: 70.33004158 | CJ13: 71.02650728 | CL13: 9 | CM13: 169651 | CN13: 228029 | CO13: 228029 | CP13: 4615 | CQ13: 232644 | CR13: 3143 | CS13: 5319 | CT13: 8461 | CU13: 10637 | DA13: 9 | DB13: 2525 | DC13: 4273 | DD13: 6796 | DE13: 8544 | DF13: 3394 | DG13: 5743 | DH13: 9135 | DI13: 11484 | DK13: 169651 | DL13: 228029
A14: 10 | B14: 21836.91667 | C14: 22167.58333 | D14: 22396.66667 | E14: 22727.25 | F14: 22956.33333 | H14: 645143.5833 | I14: 453989.6667 | J14: 645546.25 | L14: 10 | M14: 21836.91667 | N14: 22167.58333 | O14: 22396.66667 | P14: 22727.25 | Q14: 22956.33333 | S14: 623306.6667 | T14: 432152.75 | U14: 623709.3333 | V14: 432712.4167 | X14: 10 | Y14: 229639 | Z14: 32404 | AA14: 262043 | AB14: 3477 | AC14: 5886 | AD14: 9363 | AE14: 11772 | AG14: 2587 | AH14: 4379 | AI14: 6966 | AJ14: 8758 | AL14: 3968 | AM14: 6717 | AN14: 10684 | AO14: 13433 | AP14: 10 | AQ14: 262043 | AR14: 266011 | AS14: 268760 | AT14: 272727 | AU14: 275476 | AV14: 10 | AW14: 262043 | AX14: 266011 | AY14: 268760 | AZ14: 272727 | BA14: 275476 | BF14: 3968 | BG14: 6717 | BH14: 10684 | BI14: 13433 | BK14: 0 | BL14: 3968 | BM14: 6717 | BN14: 10684 | BO14: 13433 | BQ14: 10 | BR14: 136.1969854 | BS14: 138.2593555 | BT14: 139.6881497 | BU14: 141.75 | BV14: 143.1787942 | BX14: 10 | BY14: 204.2954782 | BZ14: 207.3890333 | CA14: 209.5322245 | CB14: 212.625 | CC14: 214.7681913 | CE14: 10 | CF14: 68.09849272 | CG14: 69.12967775 | CH14: 69.84407484 | CI14: 70.875 | CJ14: 71.58939709 | CL14: 10 | CM14: 170849 | CN14: 229639 | CO14: 229639 | CP14: 4647 | CQ14: 234286 | CR14: 3221 | CS14: 5451 | CT14: 8672 | CU14: 10903 | DA14: 10 | DB14: 2587 | DC14: 4379 | DD14: 6966 | DE14: 8758 | DF14: 3477 | DG14: 5886 | DH14: 9363 | DI14: 11772 | DK14: 170849 | DL14: 229639
A15: 11 | B15: 22247.75 | C15: 22586.75 | D15: 22821.5 | E15: 23160.33333 | F15: 23395.16667 | H15: 661262.75 | I15: 465090.5 | J15: 661522.3333 | L15: 11 | M15: 22247.75 | N15: 22586.75 | O15: 22821.5 | P15: 23160.33333 | Q15: 23395.16667 | S15: 639015 | T15: 442842.75 | U15: 639274.5833 | V15: 443573.4167 | X15: 11 | Y15: 232620 | Z15: =ROUND(IF(beregningsdato>=$AA$4,SUM(Y15,$Y$4)*regulering,Y15*regulering),0) -> 33014 | AA15: =IF(beregningsdato>=$AA$4,SUM($Y$4,Y15:Z15),SUM(Y15:Z15)) -> 266973 | AB15: 3565 | AC15: 6034 | AD15: 9597 | AE15: 12066 | AG15: 2652 | AH15: 4489 | AI15: 7140 | AJ15: 8977 | AL15: 4068 | AM15: 6885 | AN15: 10951 | AO15: 13769 | AP15: 11 | AQ15: =$AA15 -> 266973 | AR15: 271041 | AS15: 273858 | AT15: 277924 | AU15: 280742 | AV15: 11 | AW15: 266973 | AX15: 271041 | AY15: 273858 | AZ15: 277924 | BA15: 280742 | BF15: 4068 | BG15: 6885 | BH15: 10951 | BI15: 13769 | BK15: 0 | BL15: 4068 | BM15: 6885 | BN15: 10951 | BO15: 13769 | BQ15: 11 | BR15: 138.7593555 | BS15: 140.8737006 | BT15: 142.3378378 | BU15: 144.4511435 | BV15: 145.9158004 | BX15: 11 | BY15: 208.1390333 | BZ15: 211.3105509 | CA15: 213.5067568 | CB15: 216.6767152 | CC15: 218.8737006 | CE15: 11 | CF15: 69.37967775 | CG15: 70.43685031 | CH15: 71.16891892 | CI15: 72.22557173 | CJ15: 72.95790021 | CL15: 11 | CM15: 173067 | CN15: 232620 | CO15: 233339 | CP15: 4722 | CQ15: 237342 | CR15: 3301 | CS15: 5588 | CT15: 8889 | CU15: 11175 | DA15: 11 | DB15: 2652 | DC15: 4489 | DD15: 7140 | DE15: 8977 | DF15: 3565 | DG15: 6034 | DH15: 9597 | DI15: 12066 | DK15: 173067 | DL15: 232620
A16: 12 | B16: 22626.66667 | C16: 22974 | D16: 23214.58333 | E16: 23562.16667 | F16: 23802.66667 | H16: 677350 | I16: 476473.5833 | J16: 678409.1667 | L16: 12 | M16: 22626.66667 | N16: 22974 | O16: 23214.58333 | P16: 23562.16667 | Q16: 23802.66667 | S16: 654723.3333 | T16: 453846.9167 | U16: 655782.5 | V16: 454278 | X16: 12 | Y16: 236605 | Z16: 33576 | AA16: 271520 | AB16: 3653 | AC16: 6183 | AD16: 9838 | AE16: 12367 | AG16: 2718 | AH16: 4600 | AI16: 7319 | AJ16: 9201 | AL16: 4168 | AM16: 7055 | AN16: 11226 | AO16: 14112 | AP16: 12 | AQ16: 271520 | AR16: 275688 | AS16: 278575 | AT16: 282746 | AU16: 285632 | AV16: 12 | AW16: 271520 | AX16: 275688 | AY16: 278575 | AZ16: 282746 | BA16: 285632 | BF16: 4168 | BG16: 7055 | BH16: 11226 | BI16: 14112 | BK16: 0 | BL16: 4168 | BM16: 7055 | BN16: 11226 | BO16: 14112 | BQ16: 12 | BR16: 141.1226611 | BS16: 143.2889813 | BT16: 144.789501 | BU16: 146.9573805 | BV16: 148.4573805 | BX16: 12 | BY16: 211.6839917 | BZ16: 214.9334719 | CA16: 217.1842516 | CB16: 220.4360707 | CC16: 222.6860707 | CE16: 12 | CF16: 70.56133056 | CG16: 71.64449064 | CH16: 72.39475052 | CI16: 73.47869023 | CJ16: 74.22869023 | CL16: 12 | CM16: 176032 | CN16: 236605 | CO16: 237324 | CP16: 4803 | CQ16: 241408 | CR16: 3384 | CS16: 5727 | CT16: 9112 | CU16: 11455 | DA16: 12 | DB16: 2718 | DC16: 4600 | DD16: 7319 | DE16: 9201 | DF16: 3653 | DG16: 6183 | DH16: 9838 | DI16: 12367 | DK16: 176032 | DL16: 236605
A17: 13 | B17: 23016.41667 | C17: 23372.66667 | D17: 23619.33333 | E17: 23975.5 | F17: 24222.16667 | H17: 694547.6667 | I17: 488339.3333 | J17: 694993.5 | L17: 13 | M17: 23016.41667 | N17: 23372.66667 | O17: 23619.33333 | P17: 23975.5 | Q17: 24222.16667 | S17: 671531.25 | T17: 465322.9167 | U17: 671977.0833 | V17: 465925.75 | X17: 13 | Y17: 240704 | Z17: 34154 | AA17: 276197 | AB17: 3746 | AC17: 6340 | AD17: 10086 | AE17: 12680 | AG17: 2787 | AH17: 4717 | AI17: 7504 | AJ17: 9434 | AL17: 4275 | AM17: 7235 | AN17: 11509 | AO17: 14469 | AP17: 13 | AQ17: 276197 | AR17: 280472 | AS17: 283432 | AT17: 287706 | AU17: 290666 | AV17: 13 | AW17: 276197 | AX17: 280472 | AY17: 283432 | AZ17: 287706 | BA17: 290666 | BF17: 4275 | BG17: 7235 | BH17: 11509 | BI17: 14469 | BK17: 0 | BL17: 4275 | BM17: 7235 | BN17: 11509 | BO17: 14469 | BQ17: 13 | BR17: 143.5535343 | BS17: 145.7754678 | BT17: 147.3139293 | BU17: 149.535343 | BV17: 151.0738046 | BX17: 13 | BY17: 215.3303015 | BZ17: 218.6632017 | CA17: 220.970894 | CB17: 224.3030146 | CC17: 226.6107069 | CE17: 13 | CF17: 71.77676715 | CG17: 72.88773389 | CH17: 73.65696466 | CI17: 74.76767152 | CJ17: 75.53690229 | CL17: 13 | CM17: 179081 | CN17: 240704 | CO17: 241423 | CP17: 4886 | CQ17: 245590 | CR17: 3470 | CS17: 5872 | CT17: 9342 | CU17: 11744 | DA17: 13 | DB17: 2787 | DC17: 4717 | DD17: 7504 | DE17: 9434 | DF17: 3746 | DG17: 6340 | DH17: 10086 | DI17: 12680 | DK17: 179081 | DL17: 240704
A18: 14 | B18: 23416.91667 | C18: 23782.08333 | D18: 24034.91667 | E18: 24400.16667 | F18: 24653 | H18: 711756.0833 | I18: 500372.9167 | J18: 712531.1667 | L18: 14 | M18: 23416.91667 | N18: 23782.08333 | O18: 24034.91667 | P18: 24400.16667 | Q18: 24653 | S18: 688339.1667 | T18: 476956 | U18: 689114.25 | V18: 477574.0833 | X18: 14 | Y18: 244915 | Z18: 34749 | AA18: 281003 | AB18: 3840 | AC18: 6499 | AD18: 10340 | AE18: 12999 | AG18: 2857 | AH18: 4835 | AI18: 7693 | AJ18: 9671 | AL18: 4382 | AM18: 7416 | AN18: 11799 | AO18: 14833 | AP18: 14 | AQ18: 281003 | AR18: 285385 | AS18: 288419 | AT18: 292802 | AU18: 295836 | AV18: 14 | AW18: 281003 | AX18: 285385 | AY18: 288419 | AZ18: 292802 | BA18: 295836 | BF18: 4382 | BG18: 7416 | BH18: 11799 | BI18: 14833 | BK18: 0 | BL18: 4382 | BM18: 7416 | BN18: 11799 | BO18: 14833 | BQ18: 14 | BR18: 146.0514553 | BS18: 148.3290021 | BT18: 149.9059252 | BU18: 152.1839917 | BV18: 153.7609148 | BX18: 14 | BY18: 219.077183 | BZ18: 222.4935031 | CA18: 224.8588877 | CB18: 228.2759875 | CC18: 230.6413721 | CE18: 14 | CF18: 73.02572765 | CG18: 74.16450104 | CH18: 74.95296258 | CI18: 76.09199584 | CJ18: 76.88045738 | CL18: 14 | CM18: 182214 | CN18: 244915 | CO18: 245634 | CP18: 4971 | CQ18: 249886 | CR18: 3557 | CS18: 6019 | CT18: 9577 | CU18: 12039 | DA18: 14 | DB18: 2857 | DC18: 4835 | DD18: 7693 | DE18: 9671 | DF18: 3840 | DG18: 6499 | DH18: 10340 | DI18: 12999 | DK18: 182214 | DL18: 244915
A19: 15 | B19: 23812.25 | C19: 24186.66667 | D19: 24445.91667 | E19: 24820.25 | F19: 25079.58333 | H19: 729587.6667 | I19: 512872.9167 | J19: 730064.25 | L19: 15 | M19: 23812.25 | N19: 24186.66667 | O19: 24445.91667 | P19: 24820.25 | Q19: 25079.58333 | S19: 705775.4167 | T19: 489060.6667 | U19: 706252 | V19: 489851.3333 | X19: 15 | Y19: 249073 | Z19: 35335 | AA19: 285747 | AB19: 3937 | AC19: 6664 | AD19: 10600 | AE19: 13327 | AG19: 2929 | AH19: 4958 | AI19: 7886 | AJ19: 9915 | AL19: 4493 | AM19: 7604 | AN19: 12096 | AO19: 15208 | AP19: 15 | AQ19: 285747 | AR19: 290240 | AS19: 293351 | AT19: 297843 | AU19: 300955 | AV19: 15 | AW19: 285747 | AX19: 290240 | AY19: 293351 | AZ19: 297843 | BA19: 300955 | BF19: 4493 | BG19: 7604 | BH19: 12096 | BI19: 15208 | BK19: 0 | BL19: 4493 | BM19: 7604 | BN19: 12096 | BO19: 15208 | BQ19: 15 | BR19: 148.5171518 | BS19: 150.8523909 | BT19: 152.4693347 | BU19: 154.8040541 | BV19: 156.4215177 | BX19: 15 | BY19: 222.7757277 | BZ19: 226.2785863 | CA19: 228.7040021 | CB19: 232.2060811 | CC19: 234.6322765 | CE19: 15 | CF19: 74.25857588 | CG19: 75.42619543 | CH19: 76.23466736 | CI19: 77.40202703 | CJ19: 78.21075884 | CL19: 15 | CM19: 185308 | CN19: 249073 | CO19: 249792 | CP19: 5055 | CQ19: 254128 | CR19: 3646 | CS19: 6172 | CT19: 9818 | CU19: 12343 | DA19: 15 | DB19: 2929 | DC19: 4958 | DD19: 7886 | DE19: 9915 | DF19: 3937 | DG19: 6664 | DH19: 10600 | DI19: 13327 | DK19: 185308 | DL19: 249073
A20: 16 | B20: 24217.08333 | C20: 24600.91667 | D20: 24866.66667 | E20: 25250.41667 | F20: 25516.33333 | H20: 747742.9167 | I20: 525539.6667 | J20: 748235.4167 | L20: 16 | M20: 24217.08333 | N20: 24600.91667 | O20: 24866.66667 | P20: 25250.41667 | Q20: 25516.33333 | S20: 723525.8333 | T20: 501322.5833 | U20: 724018.3333 | V20: 502286.25 | X20: 16 | Y20: 253330 | Z20: 35936 | AA20: 290605 | AB20: 4036 | AC20: 6831 | AD20: 10867 | AE20: 13663 | AG20: 3003 | AH20: 5082 | AI20: 8085 | AJ20: 10165 | AL20: 4606 | AM20: 7795 | AN20: 12400 | AO20: 15591 | AP20: 16 | AQ20: 290605 | AR20: 295211 | AS20: 298400 | AT20: 303005 | AU20: 306196 | AV20: 16 | AW20: 290605 | AX20: 295211 | AY20: 298400 | AZ20: 303005 | BA20: 306196 | BF20: 4606 | BG20: 7795 | BH20: 12400 | BI20: 15591 | BK20: 0 | BL20: 4606 | BM20: 7795 | BN20: 12400 | BO20: 15591 | BQ20: 16 | BR20: 151.0420998 | BS20: 153.4360707 | BT20: 155.0935551 | BU20: 157.4870062 | BV20: 159.1455301 | BX20: 16 | BY20: 226.5631497 | BZ20: 230.154106 | CA20: 232.6403326 | CB20: 236.2305094 | CC20: 238.7182952 | CE20: 16 | CF20: 75.5210499 | CG20: 76.71803534 | CH20: 77.54677755 | CI20: 78.74350312 | CJ20: 79.57276507 | CL20: 16 | CM20: 188475 | CN20: 253330 | CO20: 254049 | CP20: 5141 | CQ20: 258471 | CR20: 3738 | CS20: 6327 | CT20: 10065 | CU20: 12655 | DA20: 16 | DB20: 3003 | DC20: 5082 | DD20: 8085 | DE20: 10165 | DF20: 4036 | DG20: 6831 | DH20: 10867 | DI20: 13663 | DK20: 188475 | DL20: 253330
A21: 17 | B21: =AQ21/12 -> 24553.41667 | C21: 24948.75 | D21: 25222.66667 | E21: 25618.08333 | F21: 25891.75 | H21: 769756.75 | I21: 541281.6667 | J21: 770583.0833 | L21: 17 | M21: 24553.41667 | N21: 24948.75 | O21: 25222.66667 | P21: 25618.08333 | Q21: 25891.75 | S21: 745203.3333 | T21: 516728.25 | U21: 746029.6667 | V21: 516926.3333 | X21: 17 | Y21: 256867 | Z21: 36435 | AA21: 294641 | AB21: 4157 | AC21: 7038 | AD21: 11196 | AE21: 14074 | AG21: 3093 | AH21: 5236 | AI21: 8330 | AJ21: 10471 | AL21: 4744 | AM21: 8031 | AN21: 12776 | AO21: 16060 | AP21: 17 | AQ21: 294641 | AR21: 299385 | AS21: 302672 | AT21: 307417 | AU21: 310701 | AV21: 17 | AW21: 294641 | AX21: 299385 | AY21: 302672 | AZ21: 307417 | BA21: 310701 | BF21: 4744 | BG21: 8031 | BH21: 12776 | BI21: 16060 | BK21: 0 | BL21: 4744 | BM21: 8031 | BN21: 12776 | BO21: 16060 | BQ21: 17 | BR21: 153.1398129 | BS21: 155.6055094 | BT21: 157.3139293 | BU21: 159.7801455 | BV21: 161.4870062 | BX21: 17 | BY21: 229.7097193 | BZ21: 233.408264 | CA21: 235.970894 | CB21: 239.6702183 | CC21: 242.2305094 | CE21: 17 | CF21: 76.56990644 | CG21: 77.80275468 | CH21: 78.65696466 | CI21: 79.89007277 | CJ21: 80.74350312 | CL21: 17 | CM21: 191106 | CN21: 256867 | CO21: 257586 | CP21: 5213 | CQ21: 262080 | CR21: 3851 | CS21: 6518 | CT21: 10370 | CU21: 13035 | DA21: 17 | DB21: 3093 | DC21: 5236 | DD21: 8330 | DE21: 10471 | DF21: 4157 | DG21: 7038 | DH21: 11196 | DI21: 14074 | DK21: 191106 | DL21: 256867
A22: 18 | B22: 25001.91667 | C22: 25407.41667 | D22: 25688 | E22: 26093.58333 | F22: 26374.25 | H22: 789369.4167 | I22: 554307 | J22: 790212.5833 | L22: 18 | M22: 25001.91667 | N22: 25407.41667 | O22: 25688 | P22: 26093.58333 | Q22: 26374.25 | S22: 764367.5 | T22: 529305.0833 | U22: 765210.6667 | V22: 530148.3333 | X22: 18 | Y22: 261583 | Z22: 37101 | AA22: 300023 | AB22: 4264 | AC22: 7215 | AD22: 11480 | AE22: 14432 | AG22: 3172 | AH22: 5368 | AI22: 8541 | AJ22: 10737 | AL22: 4866 | AM22: 8233 | AN22: 13100 | AO22: 16468 | AP22: 18 | AQ22: 300023 | AR22: 304889 | AS22: 308256 | AT22: 313123 | AU22: 316491 | AV22: 18 | AW22: 300023 | AX22: 304889 | AY22: 308256 | AZ22: 313123 | BA22: 316491 | BF22: 4866 | BG22: 8233 | BH22: 13100 | BI22: 16468 | BK22: 0 | BL22: 4866 | BM22: 8233 | BN22: 13100 | BO22: 16468 | BQ22: 18 | BR22: 155.9371102 | BS22: 158.4662162 | BT22: 160.2162162 | BU22: 162.745842 | BV22: 164.4963617 | BX22: 18 | BY22: 233.9056653 | BZ22: 237.6993243 | CA22: 240.3243243 | CB22: 244.118763 | CC22: 246.7445426 | CE22: 18 | CF22: 77.96855509 | CG22: 79.23310811 | CH22: 80.10810811 | CI22: 81.372921 | CJ22: 82.24818087 | CL22: 18 | CM22: 194615 | CN22: 261583 | CO22: 262302 | CP22: 5308 | CQ22: 266891 | CR22: 3949 | CS22: 6683 | CT22: 10633 | CU22: 13367 | DA22: 18 | DB22: 3172 | DC22: 5368 | DD22: 8541 | DE22: 10737 | DF22: 4264 | DG22: 7215 | DH22: 11480 | DI22: 14432 | DK22: 194615 | DL22: 261583
A23: 19 | B23: 25337.66667 | C23: 25753.41667 | D23: 26041.41667 | E23: 26457.16667 | F23: 26745 | H23: 809026.4167 | I23: 568633.4167 | J23: 809730.1667 | L23: 19 | M23: 25337.66667 | N23: 25753.41667 | O23: 26041.41667 | P23: 26457.16667 | Q23: 26745 | S23: 783688.75 | T23: 543295.75 | U23: 784392.5 | V23: 543685.3333 | X23: 19 | Y23: 265114 | Z23: 37599 | AA23: 304052 | AB23: 4372 | AC23: 7401 | AD23: 11773 | AE23: 14800 | AG23: 3253 | AH23: 5506 | AI23: 8759 | AJ23: 11011 | AL23: 4989 | AM23: 8445 | AN23: 13434 | AO23: 16888 | AP23: 19 | AQ23: 304052 | AR23: 309041 | AS23: 312497 | AT23: 317486 | AU23: =$AA23+AO23 -> 320940 | AV23: 19 | AW23: 304052 | AX23: 309041 | AY23: 312497 | AZ23: 317486 | BA23: 320940 | BF23: 4989 | BG23: 8445 | BH23: 13434 | BI23: 16888 | BK23: 0 | BL23: 4989 | BM23: 8445 | BN23: 13434 | BO23: 16888 | BQ23: 19 | BR23: 158.031185 | BS23: 160.6242204 | BT23: 162.4204782 | BU23: 165.0135135 | BV23: 166.8087318 | BX23: 19 | BY23: 237.0467775 | BZ23: 240.9363306 | CA23: 243.6307173 | CB23: 247.5202703 | CC23: 250.2130977 | CE23: 19 | CF23: 79.01559252 | CG23: 80.31211019 | CH23: 81.21023909 | CI23: 82.50675676 | CJ23: 83.4043659 | CL23: 19 | CM23: 197242 | CN23: 265114 | CO23: 265833 | CP23: 5380 | CQ23: 270494 | CR23: 4050 | CS23: 6854 | CT23: 10904 | CU23: 13708 | DA23: 19 | DB23: 3253 | DC23: 5506 | DD23: 8759 | DE23: 11011 | DF23: 4372 | DG23: 7401 | DH23: 11773 | DI23: 14800 | DK23: 197242 | DL23: 265114
A24: 20 | B24: 25617.83333 | C24: 26044.25 | D24: 26339.33333 | E24: 26765.91667 | F24: 27060.91667 | H24: 829413.25 | I24: 582276.3333 | J24: 830448.9167 | L24: 20 | M24: 25617.83333 | N24: 26044.25 | O24: 26339.33333 | P24: 26765.91667 | Q24: 27060.91667 | S24: 803795.4167 | T24: 556658.5 | U24: 804831.0833 | V24: 557223.0833 | X24: 20 | Y24: 268779 | Z24: =ROUND(IF(beregningsdato>=$AB$4,SUM(Y24,$AC$4)*regulering,Y24*regulering),0) -> 38015 | AA24: =IF(beregningsdato>=$AB$4,SUM($AC$4,Y24:Z24),SUM(Y24:Z24)) -> 307414 | AB24: 4484 | AC24: 7587 | AD24: 12073 | AE24: 15176 | AG24: 3336 | AH24: 5645 | AI24: 8982 | AJ24: 11291 | AL24: 5117 | AM24: 8658 | AN24: 13777 | AO24: 17317 | AP24: 20 | AQ24: 307414 | AR24: 312531 | AS24: 316072 | AT24: 321191 | AU24: 324731 | AV24: 20 | AW24: 307414 | AX24: 312531 | AY24: 316072 | AZ24: 321191 | BA24: 324731 | BF24: 5117 | BG24: 8658 | BH24: 13777 | BI24: 17317 | BK24: 0 | BL24: 5117 | BM24: 8658 | BN24: 13777 | BO24: 17317 | BQ24: 20 | BR24: 159.7785863 | BS24: 162.4381497 | BT24: 164.2785863 | BU24: 166.9391892 | BV24: 168.779106 | BX24: 20 | BY24: 239.6678794 | BZ24: 243.6572245 | CA24: 246.4178794 | CB24: 250.4087838 | CC24: 253.168659 | CE24: 20 | CF24: 79.88929314 | CG24: 81.21907484 | CH24: 82.13929314 | CI24: 83.46959459 | CJ24: 84.38955301 | CL24: 20 | CM24: 199969 | CN24: 268779 | CO24: 268779 | CP24: 5440 | CQ24: 274219 | CR24: 4153 | CS24: 7028 | CT24: 11182 | CU24: 14056 | DA24: 20 | DB24: 3336 | DC24: 5645 | DD24: 8982 | DE24: 11291 | DF24: 4484 | DG24: 7587 | DH24: 12073 | DI24: 15176 | DK24: 199969 | DL24: 268779
A25: 21 | B25: 26041.83333 | C25: 26479.08333 | D25: 26781.83333 | E25: 27219.16667 | F25: 27521.91667 | H25: 850258.0833 | I25: 597162.8333 | J25: 851155.1667 | L25: 21 | M25: 26041.83333 | N25: 26479.08333 | O25: 26781.83333 | P25: 27219.16667 | Q25: 27521.91667 | S25: 824216.25 | T25: 571121 | U25: 825113.3333 | V25: 571861.0833 | X25: 21 | Y25: 273238 | Z25: =ROUND(IF(beregningsdato>=$AB$4,SUM(Y25,$AC$4)*regulering,Y25*regulering),0) -> 38644 | AA25: =IF(beregningsdato>=$AB$4,SUM($AC$4,Y25:Z25),SUM(Y25:Z25)) -> 312502 | AB25: 4598 | AC25: 7782 | AD25: 12381 | AE25: 15565 | AG25: 3421 | AH25: 5790 | AI25: 9211 | AJ25: 11580 | AL25: 5247 | AM25: 8880 | AN25: 14128 | AO25: 17761 | AP25: 21 | AQ25: 312502 | AR25: 317749 | AS25: 321382 | AT25: 326630 | AU25: 330263 | AV25: 21 | AW25: 312502 | AX25: 317749 | AY25: 321382 | AZ25: 326630 | BA25: 330263 | BF25: 5247 | BG25: 8880 | BH25: 14128 | BI25: 17761 | BK25: 0 | BL25: 5247 | BM25: 8880 | BN25: 14128 | BO25: 17761 | BQ25: 21 | BR25: 162.4230769 | BS25: 165.1502079 | BT25: 167.0384615 | BU25: 169.7661123 | BV25: 171.6543659 | BX25: 21 | BY25: 243.6346154 | BZ25: 247.7253119 | CA25: 250.5576923 | CB25: 254.6491684 | CC25: 257.4815489 | CE25: 21 | CF25: 81.21153846 | CG25: 82.57510395 | CH25: 83.51923077 | CI25: 84.88305613 | CJ25: 85.82718295 | CL25: 21 | CM25: 203286 | CN25: 273238 | CO25: 273238 | CP25: 5530 | CQ25: 278768 | CR25: 4259 | CS25: 7208 | CT25: 11467 | CU25: 14416 | DA25: 21 | DB25: 3421 | DC25: 5790 | DD25: 9211 | DE25: 11580 | DF25: 4598 | DG25: 7782 | DH25: 12381 | DI25: 15565 | DK25: 203286 | DL25: 273238
A26: 22 | B26: 26434.91667 | C26: 26872.16667 | D26: 27174.91667 | E26: 27612.25 | F26: 27915 | H26: 850651.1667 | I26: 597555.9167 | J26: 851548.25 | L26: 22 | M26: 26434.91667 | N26: 26872.16667 | O26: 27174.91667 | P26: 27612.25 | Q26: 27915 | S26: 824216.25 | T26: 571121 | U26: 825113.3333 | V26: 571861.0833 | X26: 22 | Y26: 277372 | Z26: =ROUND(IF(beregningsdato>=$AB$4,SUM(Y26,$AC$4)*regulering,Y26*regulering),0) -> 39227 | AA26: =IF(beregningsdato>=$AB$4,SUM($AC$4,Y26:Z26),SUM(Y26:Z26)) -> 317219 | AB26: 4598 | AC26: 7782 | AD26: 12381 | AE26: 15565 | AG26: 3421 | AH26: 5790 | AI26: 9211 | AJ26: 11580 | AL26: 5247 | AM26: 8880 | AN26: 14128 | AO26: 17761 | AP26: 22 | AQ26: 317219 | AR26: 322466 | AS26: 326099 | AT26: 331347 | AU26: 334980 | AV26: 22 | AW26: 317219 | AX26: 322466 | AY26: 326099 | AZ26: 331347 | BA26: 334980 | BF26: 5247 | BG26: 8880 | BH26: 14128 | BI26: 17761 | BK26: 0 | BL26: 5247 | BM26: 8880 | BN26: 14128 | BO26: 17761 | BQ26: 22 | BR26: 164.8747401 | BS26: 167.6018711 | BT26: 169.4901247 | BU26: 172.2177755 | BV26: 174.1060291 | BX26: 22 | BY26: 247.3121102 | BZ26: 251.4028067 | CA26: 254.2351871 | CB26: 258.3266632 | CC26: 261.1590437 | CE26: 22 | CF26: 82.43737006 | CG26: 83.80093555 | CH26: 84.74506237 | CI26: 86.10888773 | CJ26: 87.05301455 | CL26: 22 | CM26: 206362 | CN26: 277372 | CO26: 277372 | CP26: 5613 | CQ26: 282985 | CR26: 4259 | CS26: 7208 | CT26: 11467 | CU26: 14416 | DA26: 22 | DB26: 3421 | DC26: 5790 | DD26: 9211 | DE26: 11580 | DF26: 4598 | DG26: 7782 | DH26: 12381 | DI26: 15565 | DK26: 206362 | DL26: 277372
A27: 23 | B27: 26796.66667 | C27: 27222.16667 | D27: 27516.41667 | E27: 27941.75 | F27: 28236.25 | H27: 828864.1667 | I27: 581883.4167 | J27: 829269.75 | L27: 23 | M27: 26796.66667 | N27: 27222.16667 | O27: 27516.41667 | P27: 27941.75 | Q27: 28236.25 | S27: 802067.5 | T27: 555086.75 | U27: 802473.0833 | V27: 556277.5833 | X27: 23 | Y27: 281796 | Z27: =ROUND(Y27*regulering,0) -> 39764 | AA27: =Y27+Z27 -> 321560 | AB27: 4475 | AC27: 7569 | AD27: 12042 | AE27: 15139 | AG27: 3329 | AH27: 5631 | AI27: 8959 | AJ27: 11263 | AL27: 5106 | AM27: 8637 | AN27: 13741 | AO27: 17275 | AP27: 23 | AQ27: 321560 | AR27: 326666 | AS27: 330197 | AT27: 335301 | AU27: 338835 | AV27: 23 | AW27: 321560 | AX27: 326666 | AY27: 330197 | AZ27: 335301 | BA27: 338835 | BF27: 5106 | BG27: 8637 | BH27: 13741 | BI27: 17275 | BK27: 0 | BL27: 5106 | BM27: 8637 | BN27: 13741 | BO27: 17275 | BQ27: 23 | BR27: 167.1309771 | BS27: 169.7848233 | BT27: 171.6200624 | BU27: 174.272869 | BV27: 176.1096674 | BX27: 23 | BY27: 250.6964657 | BZ27: 254.6772349 | CA27: 257.4300936 | CB27: 261.4093035 | CC27: 264.164501 | CE27: 23 | CF27: 83.56548857 | CG27: 84.89241164 | CH27: 85.81003119 | CI27: 87.13643451 | CJ27: 88.05483368 | CL27: 23 | CM27: 209653 | CN27: 281796 | CO27: 281796 | CP27: 5703 | CQ27: 287499 | CR27: 4144 | CS27: 7010 | CT27: 11153 | CU27: 14021 | DA27: 23 | DB27: 3329 | DC27: 5631 | DD27: 8959 | DE27: 11263 | DF27: 4475 | DG27: 7569 | DH27: 12042 | DI27: 15139 | DK27: 209653 | DL27: 281796
A28: 24 | B28: 27230.66667 | C28: 27643.83333 | D28: 27930.08333 | E28: 28343.25 | F28: 28629.41667 | H28: 806049.8333 | I28: 567225.0833 | J28: 806749.25 | L28: 24 | M28: 27230.66667 | N28: 27643.83333 | O28: 27930.08333 | P28: 28343.25 | Q28: 28629.41667 | S28: 778819.1667 | T28: 539994.4167 | U28: 779518.5833 | V28: 540536.75 | X28: 24 | Y28: 286360 | Z28: 40408 | AA28: 326768 | AB28: 4345 | AC28: 7355 | AD28: 11700 | AE28: 14709 | AG28: 3233 | AH28: 5472 | AI28: 8705 | AJ28: 10943 | AL28: 4958 | AM28: 8393 | AN28: 13351 | AO28: 16785 | AP28: 24 | AQ28: 326768 | AR28: 331726 | AS28: 335161 | AT28: 340119 | AU28: 343553 | AV28: 24 | AW28: 326768 | AX28: 331726 | AY28: 335161 | AZ28: 340119 | BA28: 343553 | BF28: 4958 | BG28: 8393 | BH28: 13351 | BI28: 16785 | BK28: 0 | BL28: 4958 | BM28: 8393 | BN28: 13351 | BO28: 16785 | BQ28: 24 | BR28: 169.8378378 | BS28: 172.4147609 | BT28: 174.200104 | BU28: 176.777027 | BV28: 178.5618503 | BX28: 24 | BY28: 254.7567568 | BZ28: 258.6221414 | CA28: 261.3001559 | CB28: 265.1655405 | CC28: 267.8427755 | CE28: 24 | CF28: 84.91891892 | CG28: 86.20738046 | CH28: 87.10005198 | CI28: 88.38851351 | CJ28: 89.28092516 | CL28: 24 | CM28: 213049 | CN28: 286360 | CO28: 286360 | CP28: 5795 | CQ28: 292155 | CR28: 4025 | CS28: 6812 | CT28: 10837 | CU28: 13623 | DA28: 24 | DB28: 3233 | DC28: 5472 | DD28: 8705 | DE28: 10943 | DF28: 4345 | DG28: 7355 | DH28: 11700 | DI28: 14709 | DK28: 213049 | DL28: 286360
A29: 25 | B29: 27673.83333 | C29: 28074.16667 | D29: 28351.25 | E29: 28751.83333 | F29: =AU29/12 -> 29028.91667 | H29: 782302.1667 | I29: 550376.25 | J29: 783450.8333 | L29: 25 | M29: 27673.83333 | N29: 28074.16667 | O29: 28351.25 | P29: 28751.83333 | Q29: 29028.91667 | S29: 754628.3333 | T29: 522702.4167 | U29: 755777 | V29: 523380.0833 | X29: 25 | Y29: 291020 | Z29: 41066 | AA29: 332086 | AB29: 4210 | AC29: 7124 | AD29: 11336 | AE29: 14250 | AG29: 3132 | AH29: 5300 | AI29: 8434 | AJ29: 10602 | AL29: 4804 | AM29: 8129 | AN29: 12936 | AO29: 16261 | AP29: 25 | AQ29: 332086 | AR29: 336890 | AS29: 340215 | AT29: 345022 | AU29: 348347 | AV29: 25 | AW29: 332086 | AX29: 336890 | AY29: 340215 | AZ29: 345022 | BA29: 348347 | BF29: 4804 | BG29: 8129 | BH29: 12936 | BI29: 16261 | BK29: 0 | BL29: 4804 | BM29: 8129 | BN29: 12936 | BO29: 16261 | BQ29: 25 | BR29: 172.6018711 | BS29: 175.0987526 | BT29: 176.8269231 | BU29: 179.3253638 | BV29: 181.0535343 | BX29: 25 | BY29: 258.9028067 | BZ29: 262.6481289 | CA29: 265.2403846 | CB29: 268.9880457 | CC29: 271.5803015 | CE29: 25 | CF29: 86.30093555 | CG29: 87.5493763 | CH29: 88.41346154 | CI29: 89.66268191 | CJ29: 90.52676715 | CL29: 25 | CM29: 216516 | CN29: 291020 | CO29: 291020 | CP29: 5890 | CQ29: 296910 | CR29: 3899 | CS29: 6598 | CT29: 10499 | CU29: 13198 | DA29: 25 | DB29: 3132 | DC29: 5300 | DD29: 8434 | DE29: 10602 | DF29: 4210 | DG29: 7124 | DH29: 11336 | DI29: 14250 | DK29: 216516 | DL29: 291020
A30: 26 | B30: 28127.16667 | C30: 28513.83333 | D30: 28781.33333 | E30: 29167.91667 | F30: 29435.41667 | H30: 756993.8333 | I30: 532751.3333 | J30: 757490.9167 | L30: 26 | M30: 28127.16667 | N30: 28513.83333 | O30: 28781.33333 | P30: 29167.91667 | Q30: 29435.41667 | S30: 728866.6667 | T30: 504624.1667 | U30: 729363.75 | V30: 505278.25 | X30: 26 | Y30: 295788 | Z30: 41738 | AA30: 337526 | AB30: 4066 | AC30: 6879 | AD30: 10945 | AE30: 13758 | AG30: 3025 | AH30: 5118 | AI30: 8143 | AJ30: 10236 | AL30: 4640 | AM30: 7850 | AN30: 12489 | AO30: 15699 | AP30: 26 | AQ30: 337526 | AR30: 342166 | AS30: 345376 | AT30: 350015 | AU30: 353225 | AV30: 26 | AW30: 337526 | AX30: 342166 | AY30: 345376 | AZ30: 350015 | BA30: 353225 | BF30: 4640 | BG30: 7850 | BH30: 12489 | BI30: 15699 | BK30: 0 | BL30: 4640 | BM30: 7850 | BN30: 12489 | BO30: 15699 | BQ30: 26 | BR30: 175.4293139 | BS30: 177.8409563 | BT30: 179.5093555 | BU30: 181.9204782 | BV30: 183.5888773 | BX30: 26 | BY30: 263.1439709 | BZ30: 266.7614345 | CA30: 269.2640333 | CB30: 272.8807173 | CC30: 275.383316 | CE30: 26 | CF30: 87.71465696 | CG30: 88.92047817 | CH30: 89.75467775 | CI30: 90.96023909 | CJ30: 91.79443867 | CL30: 26 | CM30: 220063 | CN30: 295788 | CO30: 295788 | CP30: 5986 | CQ30: 301774 | CR30: 3766 | CS30: 6372 | CT30: 10137 | CU30: 12743 | DA30: 26 | DB30: 3025 | DC30: 5118 | DD30: 8143 | DE30: 10236 | DF30: 4066 | DG30: 6879 | DH30: 10945 | DI30: 13758 | DK30: 220063 | DL30: 295788
A31: 27 | B31: 28590.83333 | C31: 28962.66667 | D31: 29220 | E31: 29591.58333 | F31: 29848.91667 | H31: 729496.6667 | I31: 514036 | J31: 729654.5833 | L31: 27 | M31: 28590.83333 | N31: 28962.66667 | O31: 29220 | P31: 29591.58333 | Q31: 29848.91667 | S31: 700905.8333 | T31: 485445.1667 | U31: 701063.75 | V31: 486074.0833 | X31: 27 | Y31: 300664 | Z31: 42426 | AA31: 343090 | AB31: 3910 | AC31: 6616 | AD31: 10524 | AE31: 13230 | AG31: 2909 | AH31: 4922 | AI31: 7830 | AJ31: 9843 | AL31: 4462 | AM31: 7550 | AN31: 12009 | AO31: 15097 | AP31: 27 | AQ31: 343090 | AR31: 347552 | AS31: 350640 | AT31: 355099 | AU31: 358187 | AV31: 27 | AW31: 343090 | AX31: 347552 | AY31: 350640 | AZ31: 355099 | BA31: 358187 | BF31: 4462 | BG31: 7550 | BH31: 12009 | BI31: 15097 | BK31: 0 | BL31: 4462 | BM31: 7550 | BN31: 12009 | BO31: 15097 | BQ31: 27 | BR31: 178.3212058 | BS31: 180.6403326 | BT31: 182.2453222 | BU31: 184.5628898 | BV31: 186.1678794 | BX31: 27 | BY31: 267.4818087 | BZ31: 270.960499 | CA31: 273.3679834 | CB31: 276.8443347 | CC31: 279.2518191 | CE31: 27 | CF31: 89.16060291 | CG31: 90.32016632 | CH31: 91.12266112 | CI31: 92.28144491 | CJ31: 93.08393971 | CL31: 27 | CM31: 223691 | CN31: 300664 | CO31: 300664 | CP31: 6085 | CQ31: 306749 | CR31: 3621 | CS31: 6127 | CT31: 9748 | CU31: 12254 | DA31: 27 | DB31: 2909 | DC31: 4922 | DD31: 7830 | DE31: 9843 | DF31: 3910 | DG31: 6616 | DH31: 10524 | DI31: 13230 | DK31: 223691 | DL31: 300664
A32: 28 | B32: 29064.83333 | C32: 29420.75 | D32: 29667.25 | E32: 30023.16667 | F32: 30269.5 | H32: 699967.75 | I32: 494073.25 | J32: 700570.1667 | L32: 28 | M32: 29064.83333 | N32: 29420.75 | O32: 29667.25 | P32: 30023.16667 | Q32: 30269.5 | S32: 670902.9167 | T32: 465008.4167 | U32: 671505.3333 | V32: 465296.6667 | X32: 28 | Y32: 305648 | Z32: 43130 | AA32: 348778 | AB32: 3743 | AC32: 6335 | AD32: 10078 | AE32: 12668 | AG32: 2785 | AH32: 4713 | AI32: 7498 | AJ32: 9425 | AL32: 4271 | AM32: 7229 | AN32: 11500 | AO32: 14456 | AP32: 28 | AQ32: 348778 | AR32: 353049 | AS32: 356007 | AT32: 360278 | AU32: 363234 | AV32: 28 | AW32: 348778 | AX32: 353049 | AY32: 356007 | AZ32: 360278 | BA32: 363234 | BF32: 4271 | BG32: 7229 | BH32: 11500 | BI32: 14456 | BK32: 0 | BL32: 4271 | BM32: 7229 | BN32: 11500 | BO32: 14456 | BQ32: 28 | BR32: 181.2775468 | BS32: 183.4974012 | BT32: 185.0348233 | BU32: 187.2546778 | BV32: 188.7910603 | BX32: 28 | BY32: 271.9163202 | BZ32: 275.2461019 | CA32: 277.5522349 | CB32: 280.8820166 | CC32: 283.1865904 | CE32: 28 | CF32: 90.63877339 | CG32: 91.74870062 | CH32: 92.51741164 | CI32: 93.62733888 | CJ32: 94.39553015 | CL32: 28 | CM32: 227399 | CN32: 305648 | CO32: 305648 | CP32: 6186 | CQ32: 311834 | CR32: 3467 | CS32: 5867 | CT32: 9334 | CU32: 11733 | DA32: 28 | DB32: 2785 | DC32: 4713 | DD32: 7498 | DE32: 9425 | DF32: 3743 | DG32: 6335 | DH32: 10078 | DI32: 12668 | DK32: 227399 | DL32: 305648
A33: 29 | B33: 29549.5 | C33: 29888.58333 | D33: 30123.25 | E33: 30462.41667 | F33: 30697.16667 | H33: 668721.5833 | I33: 472235.25 | J33: 669452.4167 | L33: 29 | M33: 29549.5 | N33: 29888.58333 | O33: 30123.25 | P33: 30462.41667 | Q33: 30697.16667 | S33: 639172.0833 | T33: 442685.75 | U33: 639902.9167 | V33: 443416.6667 | X33: 29 | Y33: 310745 | Z33: 43849 | AA33: 354594 | AB33: 3566 | AC33: 6034 | AD33: 9600 | AE33: 12069 | AG33: 2653 | AH33: 4489 | AI33: 7142 | AJ33: 8979 | AL33: 4069 | AM33: 6885 | AN33: 10955 | AO33: 13772 | AP33: 29 | AQ33: 354594 | AR33: 358663 | AS33: 361479 | AT33: 365549 | AU33: 368366 | AV33: 29 | AW33: 354594 | AX33: 358663 | AY33: 361479 | AZ33: 365549 | BA33: 368366 | BF33: 4069 | BG33: 6885 | BH33: 10955 | BI33: 13772 | BK33: 0 | BL33: 4069 | BM33: 6885 | BN33: 10955 | BO33: 13772 | BQ33: 29 | BR33: 184.3004158 | BS33: 186.4152807 | BT33: 187.8788981 | BU33: 189.9942827 | BV33: 191.45842 | BX33: 29 | BY33: 276.4506237 | BZ33: 279.622921 | CA33: 281.8183472 | CB33: 284.9914241 | CC33: 287.1876299 | CE33: 29 | CF33: 92.1502079 | CG33: 93.20764033 | CH33: 93.93944906 | CI33: 94.99714137 | CJ33: 95.72920998 | CL33: 29 | CM33: 231191 | CN33: 310745 | CO33: 310745 | CP33: 6289 | CQ33: 317034 | CR33: 3303 | CS33: 5589 | CT33: 8891 | CU33: 11178 | DA33: 29 | DB33: 2653 | DC33: 4489 | DD33: 7142 | DE33: 8979 | DF33: 3566 | DG33: 6034 | DH33: 9600 | DI33: 12069 | DK33: 231191 | DL33: 310745
A34: 30 | B34: 30044.66667 | C34: 30365.66667 | D34: 30588.08333 | E34: 30909.25 | F34: 31131.5 | H34: 635129.6667 | I34: 449621.0833 | J34: 635987.25 | L34: 30 | M34: 30044.66667 | N34: 30365.66667 | O34: 30588.08333 | P34: 30909.25 | Q34: 31131.5 | S34: 605085 | T34: 419576.4167 | U34: 605942.5833 | V34: 419805.8333 | X34: 30 | Y34: 315952 | Z34: 44584 | AA34: 360536 | AB34: 3376 | AC34: 5715 | AD34: 9092 | AE34: 11429 | AG34: 2512 | AH34: 4252 | AI34: 6764 | AJ34: 8503 | AL34: 3852 | AM34: 6521 | AN34: 10375 | AO34: 13042 | AP34: 30 | AQ34: 360536 | AR34: 364388 | AS34: 367057 | AT34: 370911 | AU34: 373578 | AV34: 30 | AW34: 360536 | AX34: 364388 | AY34: 367057 | AZ34: 370911 | BA34: 373578 | BF34: 3852 | BG34: 6521 | BH34: 10375 | BI34: 13042 | BK34: 0 | BL34: 3852 | BM34: 6521 | BN34: 10375 | BO34: 13042 | BQ34: 30 | BR34: 187.3887734 | BS34: 189.3908524 | BT34: 190.7780665 | BU34: 192.781185 | BV34: 194.1673597 | BX34: 30 | BY34: 281.0831601 | BZ34: 284.0862786 | CA34: 286.1670998 | CB34: 289.1717775 | CC34: 291.2510395 | CE34: 30 | CF34: 93.69438669 | CG34: 94.6954262 | CH34: 95.38903326 | CI34: 96.39059252 | CJ34: 97.08367983 | CL34: 30 | CM34: 235065 | CN34: 315952 | CO34: 315952 | CP34: 6394 | CQ34: 322346 | CR34: 3127 | CS34: 5293 | CT34: 8420 | CU34: 10585 | DA34: 30 | DB34: 2512 | DC34: 4252 | DD34: 6764 | DE34: 8503 | DF34: 3376 | DG34: 5715 | DH34: 9092 | DI34: 11429 | DK34: 235065 | DL34: 315952
A35: 31 | B35: 30551 | C35: 30853 | D35: 31062.08333 | E35: 31364.16667 | F35: 31573.16667 | H35: 599821 | I35: 424975.0833 | J35: 600489.1667 | L35: 31 | M35: 30551 | N35: 30853 | O35: 31062.08333 | P35: 31364.16667 | Q35: 31573.16667 | S35: 569270 | T35: 394424.0833 | U35: 569938.1667 | V35: 394778.1667 | X35: 31 | Y35: 321277 | Z35: 45335 | AA35: 366612 | AB35: 3176 | AC35: 5375 | AD35: 8551 | AE35: 10749 | AG35: 2363 | AH35: 3999 | AI35: 6362 | AJ35: 7997 | AL35: 3624 | AM35: 6133 | AN35: 9758 | AO35: 12266 | AP35: 31 | AQ35: 366612 | AR35: 370236 | AS35: 372745 | AT35: 376370 | AU35: 378878 | AV35: 31 | AW35: 366612 | AX35: 370236 | AY35: 372745 | AZ35: 376370 | BA35: 378878 | BF35: 3624 | BG35: 6133 | BH35: 9758 | BI35: 12266 | BK35: 0 | BL35: 3624 | BM35: 6133 | BN35: 9758 | BO35: 12266 | BQ35: 31 | BR35: 190.5467775 | BS35: 192.4303534 | BT35: 193.7344075 | BU35: 195.6185031 | BV35: 196.9220374 | BX35: 31 | BY35: 285.8201663 | BZ35: 288.6455301 | CA35: 290.6016112 | CB35: 293.4277547 | CC35: 295.3830561 | CE35: 31 | CF35: 95.27338877 | CG35: 96.21517672 | CH35: 96.86720374 | CI35: 97.80925156 | CJ35: 98.46101871 | CL35: 31 | CM35: 239027 | CN35: 321277 | CO35: 321277 | CP35: 6502 | CQ35: 327779 | CR35: 2942 | CS35: 4978 | CT35: 7920 | CU35: 9956 | DA35: 31 | DB35: 2363 | DC35: 3999 | DD35: 6362 | DE35: 7997 | DF35: 3176 | DG35: 5375 | DH35: 8551 | DI35: 10749 | DK35: 239027 | DL35: 321277
A36: 32 | B36: 31068.66667 | C36: 31350.25 | D36: 31545.25 | E36: 31827.08333 | F36: 32022.08333 | H36: 561853.25 | I36: 398925.25 | J36: 562801.0833 | L36: 32 | M36: 31068.66667 | N36: 31350.25 | O36: 31545.25 | P36: 31827.08333 | Q36: 32022.08333 | S36: 530784.5833 | T36: 367856.5833 | U36: 531732.4167 | V36: 368333.4167 | X36: 32 | Y36: 326721 | Z36: 46103 | AA36: 372824 | AB36: 2961 | AC36: 5012 | AD36: 7976 | AE36: 10026 | AG36: 2203 | AH36: 3729 | AI36: 5934 | AJ36: 7459 | AL36: 3379 | AM36: 5719 | AN36: 9101 | AO36: 11441 | AP36: 32 | AQ36: 372824 | AR36: 376203 | AS36: 378543 | AT36: 381925 | AU36: 384265 | AV36: 32 | AW36: 372824 | AX36: 376203 | AY36: 378543 | AZ36: 381925 | BA36: 384265 | BF36: 3379 | BG36: 5719 | BH36: 9101 | BI36: 11441 | BK36: 0 | BL36: 3379 | BM36: 5719 | BN36: 9101 | BO36: 11441 | BQ36: 32 | BR36: 193.7754678 | BS36: 195.5317048 | BT36: 196.747921 | BU36: 198.5057173 | BV36: 199.7219335 | BX36: 32 | BY36: 290.6632017 | BZ36: 293.2975572 | CA36: 295.1218815 | CB36: 297.7585759 | CC36: 299.5829002 | CE36: 32 | CF36: 96.88773389 | CG36: 97.76585239 | CH36: 98.3739605 | CI36: 99.25285863 | CJ36: 99.86096674 | CL36: 32 | CM36: 243077 | CN36: 326721 | CO36: 326721 | CP36: 6612 | CQ36: 333333 | CR36: 2743 | CS36: 4642 | CT36: 7387 | CU36: 9286 | DA36: 32 | DB36: 2203 | DC36: 3729 | DD36: 5934 | DE36: 7459 | DF36: 2961 | DG36: 5012 | DH36: 7976 | DI36: 10026 | DK36: 243077 | DL36: 326721
A37: 33 | B37: 31597.58333 | C37: 31857.66667 | D37: 32037.75 | E37: 32298 | F37: 32477.91667 | H37: 521854.6667 | I37: 371314.75 | J37: 522609 | L37: 33 | M37: 31597.58333 | N37: 31857.66667 | O37: 32037.75 | P37: 32298 | Q37: 32477.91667 | S37: 490257.0833 | T37: 339717.1667 | U37: 491011.4167 | V37: 339843.3333 | X37: 33 | Y37: 332283 | Z37: 46888 | AA37: 379171 | AB37: 2735 | AC37: 4629 | AD37: 7366 | AE37: 9258 | AG37: 2035 | AH37: 3444 | AI37: 5480 | AJ37: 6888 | AL37: 3121 | AM37: 5282 | AN37: 8405 | AO37: 10564 | AP37: 33 | AQ37: 379171 | AR37: 382292 | AS37: 384453 | AT37: 387576 | AU37: 389735 | AV37: 33 | AW37: 379171 | AX37: 382292 | AY37: 384453 | AZ37: 387576 | BA37: 389735 | BF37: =ROUND(AL37*udbygningspct,0) -> 3121 | BG37: =ROUND(AM37*udbygningspct,0) -> 5282 | BH37: =ROUND(AN37*udbygningspct,0) -> 8405 | BI37: =ROUND(AO37*udbygningspct,0) -> 10564 | BK37: =BD37 -> 0 | BL37: =$BK37+BF37 -> 3121 | BM37: =$BK37+BG37 -> 5282 | BN37: =$BK37+BH37 -> 8405 | BO37: =$BK37+BI37 -> 10564 | BQ37: 33 | BR37: =AQ37/1924 -> 197.0743243 | BS37: =AR37/1924 -> 198.6964657 | BT37: =AS37/1924 -> 199.8196466 | BU37: =AT37/1924 -> 201.4428274 | BV37: =AU37/1924 -> 202.5649688 | BX37: 33 | BY37: =AQ37/1924*1.5 -> 295.6114865 | BZ37: =AR37/1924*1.5 -> 298.0446985 | CA37: =AS37/1924*1.5 -> 299.7294699 | CB37: =AT37/1924*1.5 -> 302.1642412 | CC37: =AU37/1924*1.5 -> 303.8474532 | CE37: 33 | CF37: =AQ37/1924/2 -> 98.53716216 | CG37: =AR37/1924/2 -> 99.34823285 | CH37: =AS37/1924/2 -> 99.90982328 | CI37: =AT37/1924/2 -> 100.7214137 | CJ37: =AU37/1924/2 -> 101.2824844 | CL37: 33 | CM37: 247215 | CN37: 332283 | CO37: 332283 | CP37: 6725 | CQ37: 339008 | CR37: 2534 | CS37: 4288 | CT37: 6822 | CU37: 8575 | DA37: 33 | DB37: 2035 | DC37: 3444 | DD37: 5480 | DE37: 6888 | DF37: 2735 | DG37: 4629 | DH37: 7366 | DI37: 9258 | DK37: 247215 | DL37: 332283
A38: 34 | B38: 32138.75 | C38: 32376 | D38: 32540.33333 | E38: 32777.58333 | F38: 32941.91667 | H38: 479355 | I38: 342144.3333 | J38: 479756.5833 | L38: 34 | M38: 32138.75 | N38: 32376 | O38: 32540.33333 | P38: 32777.58333 | Q38: 32941.91667 | S38: 447216.25 | T38: 310005.5833 | U38: 447617.8333 | V38: 310407.1667 | X38: 34 | Y38: 337974 | Z38: 47691 | AA38: 385665 | AB38: 2495 | AC38: 4223 | AD38: 6718 | AE38: 8446 | AG38: 1856 | AH38: 3142 | AI38: 4998 | AJ38: 6284 | AL38: 2847 | AM38: 4819 | AN38: 7666 | AO38: 9638 | AP38: 34 | AQ38: 385665 | AR38: 388512 | AS38: 390484 | AT38: 393331 | AU38: 395303 | AV38: 34 | AW38: 385665 | AX38: 388512 | AY38: 390484 | AZ38: 393331 | BA38: 395303 | BF38: 2847 | BG38: 4819 | BH38: 7666 | BI38: 9638 | BK38: 0 | BL38: 2847 | BM38: 4819 | BN38: 7666 | BO38: 9638 | BQ38: 34 | BR38: 200.4495842 | BS38: 201.9293139 | BT38: 202.954262 | BU38: 204.4339917 | BV38: 205.4589397 | BX38: 34 | BY38: 300.6743763 | BZ38: 302.8939709 | CA38: 304.4313929 | CB38: 306.6509875 | CC38: 308.1884096 | CE38: 34 | CF38: 100.2247921 | CG38: 100.964657 | CH38: 101.477131 | CI38: 102.2169958 | CJ38: 102.7294699 | CL38: 34 | CM38: 251449 | CN38: 337974 | CO38: 337974 | CP38: 6840 | CQ38: 344814 | CR38: 2311 | CS38: 3911 | CT38: 6222 | CU38: 7823 | DA38: 34 | DB38: 1856 | DC38: 3142 | DD38: 4998 | DE38: 6284 | DF38: 2495 | DG38: 4223 | DH38: 6718 | DI38: 8446 | DK38: 251449 | DL38: 337974
A39: 35 | B39: 32691.25 | C39: 32904.41667 | D39: 33051.83333 | E39: 33264.75 | F39: 33412.33333 | H39: 434510.4167 | I39: 310784.8333 | J39: 434399.75 | L39: 35 | M39: 32691.25 | N39: 32904.41667 | O39: 33051.83333 | P39: 33264.75 | Q39: 33412.33333 | S39: 401819.1667 | T39: 278093.5833 | U39: 401708.5 | V39: 278768.0833 | X39: 35 | Y39: 343784 | Z39: 48511 | AA39: 392295 | AB39: 2242 | AC39: 3792 | AD39: 6031 | AE39: 7583 | AG39: 1668 | AH39: 2821 | AI39: 4487 | AJ39: 5642 | AL39: 2558 | AM39: 4327 | AN39: 6882 | AO39: 8653 | AP39: 35 | AQ39: 392295 | AR39: 394853 | AS39: 396622 | AT39: 399177 | AU39: 400948 | AV39: 35 | AW39: 392295 | AX39: 394853 | AY39: 396622 | AZ39: 399177 | BA39: 400948 | BF39: 2558 | BG39: 4327 | BH39: 6882 | BI39: 8653 | BK39: 0 | BL39: 2558 | BM39: 4327 | BN39: 6882 | BO39: 8653 | BQ39: 35 | BR39: 203.8955301 | BS39: 205.225052 | BT39: 206.1444906 | BU39: 207.4724532 | BV39: 208.3929314 | BX39: 35 | BY39: 305.8432952 | BZ39: 307.837578 | CA39: 309.216736 | CB39: 311.2086798 | CC39: 312.5893971 | CE39: 35 | CF39: 101.9477651 | CG39: 102.612526 | CH39: 103.0722453 | CI39: 103.7362266 | CJ39: 104.1964657 | CL39: 35 | CM39: 255772 | CN39: 343784 | CO39: 343784 | CP39: 6958 | CQ39: 350742 | CR39: 2076 | CS39: 3512 | CT39: 5586 | CU39: 7024 | DA39: 35 | DB39: 1668 | DC39: 2821 | DD39: 4487 | DE39: 5642 | DF39: 2242 | DG39: 3792 | DH39: 6031 | DI39: 7583 | DK39: 255772 | DL39: 343784
A40: 36 | B40: 33256.5 | C40: 33444 | D40: 33573.66667 | E40: 33761 | F40: 33890.66667 | H40: 386694 | I40: 277865.6667 | J40: 386697 | L40: 36 | M40: 33256.5 | N40: 33444 | O40: 33573.66667 | P40: 33761 | Q40: 33890.66667 | S40: 353437.5 | T40: 244609.1667 | U40: 353440.5 | V40: 244926.1667 | X40: 36 | Y40: 349728 | Z40: 49350 | AA40: 399078 | AB40: 1972 | AC40: 3335 | AD40: 5305 | AE40: 6669 | AG40: 1467 | AH40: 2481 | AI40: 3947 | AJ40: 4962 | AL40: 2250 | AM40: 3806 | AN40: 6054 | AO40: 7610 | AP40: 36 | AQ40: 399078 | AR40: 401328 | AS40: 402884 | AT40: 405132 | AU40: 406688 | AV40: 36 | AW40: 399078 | AX40: 401328 | AY40: 402884 | AZ40: 405132 | BA40: 406688 | BF40: 2250 | BG40: 3806 | BH40: 6054 | BI40: 7610 | BK40: 0 | BL40: 2250 | BM40: 3806 | BN40: 6054 | BO40: 7610 | BQ40: 36 | BR40: 207.4209979 | BS40: 208.5904366 | BT40: 209.3991684 | BU40: 210.5675676 | BV40: 211.3762994 | BX40: 36 | BY40: 311.1314969 | BZ40: 312.8856549 | CA40: 314.0987526 | CB40: 315.8513514 | CC40: 317.0644491 | CE40: 36 | CF40: 103.710499 | CG40: 104.2952183 | CH40: 104.6995842 | CI40: 105.2837838 | CJ40: 105.6881497 | CL40: 36 | CM40: 260194 | CN40: 349728 | CO40: 349728 | CP40: 7078 | CQ40: 356806 | CR40: 1826 | CS40: 3089 | CT40: 4914 | CU40: 6177 | DA40: 36 | DB40: 1467 | DC40: 2481 | DD40: 3947 | DE40: 4962 | DF40: 1972 | DG40: 3335 | DH40: 5305 | DI40: 6669 | DK40: 260194 | DL40: 349728
A41: 37 | B41: 33834 | C41: 33994.16667 | D41: 34105.16667 | E41: 34265.33333 | F41: 34376.33333 | H41: 335748.1667 | I41: 243229.1667 | J41: 336019.3333 | L41: 37 | M41: 33834 | N41: 33994.16667 | O41: 34105.16667 | P41: 34265.33333 | Q41: 34376.33333 | S41: 301914.1667 | T41: 209395.1667 | U41: 302185.3333 | V41: 209666.3333 | X41: 37 | Y41: 355801 | Z41: 50207 | AA41: 406008 | AB41: 1684 | AC41: 2852 | AD41: 4536 | AE41: 5703 | AG41: 1253 | AH41: 2122 | AI41: 3375 | AJ41: 4243 | AL41: 1922 | AM41: 3254 | AN41: 5176 | AO41: 6508 | AP41: 37 | AQ41: 406008 | AR41: 407930 | AS41: 409262 | AT41: 411184 | AU41: 412516 | AV41: 37 | AW41: 406008 | AX41: 407930 | AY41: 409262 | AZ41: 411184 | BA41: 412516 | BF41: 1922 | BG41: 3254 | BH41: 5176 | BI41: 6508 | BK41: 0 | BL41: 1922 | BM41: 3254 | BN41: 5176 | BO41: 6508 | BQ41: 37 | BR41: 211.022869 | BS41: 212.0218295 | BT41: 212.7141372 | BU41: 213.7130977 | BV41: 214.4054054 | BX41: 37 | BY41: 316.5343035 | BZ41: 318.0327443 | CA41: 319.0712058 | CB41: 320.5696466 | CC41: 321.6081081 | CE41: 37 | CF41: 105.5114345 | CG41: 106.0109148 | CH41: 106.3570686 | CI41: 106.8565489 | CJ41: 107.2027027 | CL41: 37 | CM41: 264712 | CN41: 355801 | CO41: 355801 | CP41: 7201 | CQ41: 363002 | CR41: 1560 | CS41: 2642 | CT41: 4202 | CU41: 5282 | DA41: 37 | DB41: 1253 | DC41: 2122 | DD41: 3375 | DE41: 4243 | DF41: 1684 | DG41: 2852 | DH41: 4536 | DI41: 5703 | DK41: 264712 | DL41: 355801
A42: 38 | B42: 34446.91667 | C42: 34581 | D42: 34673.91667 | E42: 34808 | F42: 34901.08333 | H42: 287194 | I42: 209728.9167 | J42: 287421 | L42: 38 | M42: 34446.91667 | N42: 34581 | O42: 34673.91667 | P42: 34808 | Q42: 34901.08333 | S42: 252747.0833 | T42: 175282 | U42: 252974.0833 | V42: 175823.1667 | X42: 38 | Y42: 362247 | Z42: 51116 | AA42: 413363 | AB42: 1410 | AC42: 2387 | AD42: 3797 | AE42: 4776 | AG42: 1049 | AH42: 1776 | AI42: 2825 | AJ42: 3553 | AL42: 1609 | AM42: 2724 | AN42: 4333 | AO42: 5450 | AP42: 38 | AQ42: 413363 | AR42: 414972 | AS42: 416087 | AT42: 417696 | AU42: 418813 | AV42: 38 | AW42: 413363 | AX42: 414972 | AY42: 416087 | AZ42: 417696 | BA42: 418813 | BF42: 1609 | BG42: 2724 | BH42: 4333 | BI42: 5450 | BK42: 0 | BL42: 1609 | BM42: 2724 | BN42: 4333 | BO42: 5450 | BQ42: 38 | BR42: 214.8456341 | BS42: 215.6819127 | BT42: 216.2614345 | BU42: 217.0977131 | BV42: 217.6782744 | BX42: 38 | BY42: 322.2684511 | BZ42: 323.522869 | CA42: 324.3921518 | CB42: 325.6465696 | CC42: 326.5174116 | CE42: 38 | CF42: 107.422817 | CG42: 107.8409563 | CH42: 108.1307173 | CI42: 108.5488565 | CJ42: 108.8391372 | CL42: 38 | CM42: 269508 | CN42: 362247 | CO42: 362247 | CP42: 7331 | CQ42: 369578 | CR42: 1306 | CS42: 2211 | CT42: 3517 | CU42: 4423 | DA42: 38 | DB42: 1049 | DC42: 1776 | DD42: 2825 | DE42: 3553 | DF42: 1410 | DG42: 2387 | DH42: 3797 | DI42: 4776 | DK42: 269508 | DL42: 362247
A43: 39 | B43: 35062.41667 | C43: 35165.66667 | D43: 35237.08333 | E43: 35340.33333 | F43: 35412 | H43: 229688.6667 | I43: 169786.0833 | J43: 229863.3333 | L43: 39 | M43: 35062.41667 | N43: 35165.66667 | O43: 35237.08333 | P43: 35340.33333 | Q43: 35412 | S43: 194626.25 | T43: 134723.6667 | U43: 194800.9167 | V43: 135369.5833 | X43: 39 | Y43: 368719 | Z43: 52030 | AA43: 420749 | AB43: 1086 | AC43: 1837 | AD43: 2923 | AE43: 3676 | AG43: 808 | AH43: 1367 | AI43: 2175 | AJ43: 2735 | AL43: 1239 | AM43: 2096 | AN43: 3335 | AO43: 4195 | AP43: 39 | AQ43: 420749 | AR43: 421988 | AS43: 422845 | AT43: 424084 | AU43: 424944 | AV43: 39 | AW43: 420749 | AX43: 421988 | AY43: 422845 | AZ43: 424084 | BA43: 424944 | BF43: 1239 | BG43: 2096 | BH43: 3335 | BI43: 4195 | BK43: 0 | BL43: 1239 | BM43: 2096 | BN43: 3335 | BO43: 4195 | BQ43: 39 | BR43: 218.6845114 | BS43: 219.3284823 | BT43: 219.7739085 | BU43: 220.4178794 | BV43: 220.8648649 | BX43: 39 | BY43: 328.0267672 | BZ43: 328.9927235 | CA43: 329.6608628 | CB43: 330.6268191 | CC43: 331.2972973 | CE43: 39 | CF43: 109.3422557 | CG43: 109.6642412 | CH43: 109.8869543 | CI43: 110.2089397 | CJ43: 110.4324324 | CL43: 39 | CM43: 274323 | CN43: 368719 | CO43: 368719 | CP43: 7462 | CQ43: 376181 | CR43: 1006 | CS43: 1702 | CT43: 2708 | CU43: 3405 | DA43: 39 | DB43: 808 | DC43: 1367 | DD43: 2175 | DE43: 2735 | DF43: 1086 | DG43: 1837 | DH43: 2923 | DI43: 3676 | DK43: 274323 | DL43: 368719
A44: 40 | B44: 35691.66667 | C44: 35762.33333 | D44: 35811.33333 | E44: 35881.83333 | F44: 35930.91667 | H44: 168898.3333 | I44: 128127.3333 | J44: 168703.8333 | L44: 40 | M44: 35691.66667 | N44: 35762.33333 | O44: 35811.33333 | P44: 35881.83333 | Q44: 35930.91667 | S44: 133206.6667 | T44: 92435.66667 | U44: 133012.1667 | V44: 92712.25 | X44: 40 | Y44: 375337 | Z44: 52963 | AA44: 428300 | AB44: 743 | AC44: 1258 | AD44: 2000 | AE44: 2516 | AG44: 553 | AH44: 936 | AI44: 1488 | AJ44: 1872 | AL44: 848 | AM44: 1436 | AN44: 2282 | AO44: 2871 | AP44: 40 | AQ44: 428300 | AR44: 429148 | AS44: 429736 | AT44: 430582 | AU44: 431171 | AV44: 40 | AW44: 428300 | AX44: 429148 | AY44: 429736 | AZ44: 430582 | BA44: 431171 | BF44: 848 | BG44: 1436 | BH44: 2282 | BI44: 2871 | BK44: 0 | BL44: 848 | BM44: 1436 | BN44: 2282 | BO44: 2871 | BQ44: 40 | BR44: 222.6091476 | BS44: 223.049896 | BT44: 223.3555094 | BU44: 223.7952183 | BV44: 224.1013514 | BX44: 40 | BY44: 333.9137214 | BZ44: 334.5748441 | CA44: 335.033264 | CB44: 335.6928274 | CC44: 336.152027 | CE44: 40 | CF44: 111.3045738 | CG44: 111.524948 | CH44: 111.6777547 | CI44: 111.8976091 | CJ44: 112.0506757 | CL44: 40 | CM44: 279247 | CN44: 375337 | CO44: 375337 | CP44: 7596 | CQ44: 382933 | CR44: 688 | CS44: 1165 | CT44: 1853 | CU44: 2330 | DA44: 40 | DB44: 553 | DC44: 936 | DD44: 1488 | DE44: 1872 | DF44: 743 | DG44: 1258 | DH44: 2000 | DI44: 2516 | DK44: 279247 | DL44: 375337
A45: 41 | B45: 36334.75 | C45: 36371.08333 | D45: 36396.08333 | E45: 36432.33333 | F45: 36457.41667 | H45: 104823.0833 | I45: 83496.08333 | J45: 104727.3333 | L45: 41 | M45: 36334.75 | N45: 36371.08333 | O45: 36396.08333 | P45: 36432.33333 | Q45: 36457.41667 | S45: 68488.33333 | T45: 47161.33333 | U45: 68392.58333 | V45: 47379.66667 | X45: 41 | Y45: 382099 | Z45: 53918 | AA45: 436017 | AB45: 382 | AC45: 645 | AD45: 1026 | AE45: 1290 | AG45: 284 | AH45: 480 | AI45: 763 | AJ45: 960 | AL45: 436 | AM45: 736 | AN45: 1171 | AO45: 1472 | AP45: 41 | AQ45: 436017 | AR45: 436453 | AS45: 436753 | AT45: 437188 | AU45: 437489 | AV45: 41 | AW45: 436017 | AX45: 436453 | AY45: 436753 | AZ45: 437188 | BA45: 437489 | BF45: 436 | BG45: 736 | BH45: 1171 | BI45: 1472 | BK45: 0 | BL45: 436 | BM45: 736 | BN45: 1171 | BO45: 1472 | BQ45: 41 | BR45: 226.6200624 | BS45: 226.8466736 | BT45: 227.0025988 | BU45: 227.2286902 | BV45: 227.3851351 | BX45: 41 | BY45: 339.9300936 | BZ45: 340.2700104 | CA45: 340.5038981 | CB45: 340.8430353 | CC45: 341.0777027 | CE45: 41 | CF45: 113.3100312 | CG45: 113.4233368 | CH45: 113.5012994 | CI45: 113.6143451 | CJ45: 113.6925676 | CL45: 41 | CM45: 284278 | CN45: 382099 | CO45: 382099 | CP45: 7733 | CQ45: 389832 | CR45: 353 | CS45: 598 | CT45: 950 | CU45: 1195 | DA45: 41 | DB45: 284 | DC45: 480 | DD45: 763 | DE45: 960 | DF45: 382 | DG45: 645 | DH45: 1026 | DI45: 1290 | DK45: 284278 | DL45: 382099
A46: 42 | B46: 36991.75 | C46: 36991.75 | D46: 36991.75 | E46: 36991.75 | F46: 36991.75 | H46: 36991.75 | I46: 36991.75 | J46: 36991.75 | L46: 42 | M46: 36991.75 | N46: 36991.75 | O46: 36991.75 | P46: 36991.75 | Q46: 36991.75 | S46: 0 | T46: 0 | U46: 0 | V46: 0 | X46: 42 | Y46: 389008 | Z46: 54893 | AA46: 443901 | AB46: 0 | AC46: 0 | AD46: 0 | AE46: 0 | AG46: 0 | AH46: 0 | AI46: 0 | AJ46: 0 | AL46: 0 | AM46: 0 | AN46: 0 | AO46: 0 | AP46: 42 | AQ46: 443901 | AR46: 443901 | AS46: 443901 | AT46: 443901 | AU46: 443901 | AV46: 42 | AW46: 443901 | AX46: 443901 | AY46: 443901 | AZ46: 443901 | BA46: 443901 | BF46: 0 | BG46: 0 | BH46: 0 | BI46: 0 | BK46: 0 | BL46: 0 | BM46: 0 | BN46: 0 | BO46: 0 | BQ46: 42 | BR46: 230.7177755 | BS46: 230.7177755 | BT46: 230.7177755 | BU46: 230.7177755 | BV46: 230.7177755 | BX46: 42 | BY46: 346.0766632 | BZ46: 346.0766632 | CA46: 346.0766632 | CB46: 346.0766632 | CC46: 346.0766632 | CE46: 42 | CF46: 115.3588877 | CG46: 115.3588877 | CH46: 115.3588877 | CI46: 115.3588877 | CJ46: 115.3588877 | CL46: 42 | CM46: 289418 | CN46: 389008 | CO46: 389008 | CP46: 7873 | CQ46: 396881 | CR46: 0 | CS46: 0 | CT46: 0 | CU46: 0 | DA46: 42 | DB46: - | DC46: - | DD46: - | DE46: - | DF46: 0 | DG46: 0 | DH46: 0 | DI46: 0 | DK46: 289418 | DL46: 389008
A47: 43 | B47: 37813.75 | C47: 37813.75 | D47: 37813.75 | E47: 37813.75 | F47: 37813.75 | H47: 37813.75 | I47: 37813.75 | J47: 37813.75 | L47: 43 | M47: 37813.75 | N47: 37813.75 | O47: 37813.75 | P47: 37813.75 | Q47: 37813.75 | S47: 0 | T47: 0 | U47: 0 | V47: 0 | X47: 43 | Y47: 397653 | Z47: 56112 | AA47: 453765 | AB47: 0 | AC47: 0 | AD47: 0 | AE47: 0 | AG47: 0 | AH47: 0 | AI47: 0 | AJ47: 0 | AL47: 0 | AM47: 0 | AN47: 0 | AO47: 0 | AP47: 43 | AQ47: 453765 | AR47: 453765 | AS47: 453765 | AT47: 453765 | AU47: 453765 | AV47: 43 | AW47: 453765 | AX47: 453765 | AY47: 453765 | AZ47: 453765 | BA47: 453765 | BF47: 0 | BG47: 0 | BH47: 0 | BI47: 0 | BK47: 0 | BL47: 0 | BM47: 0 | BN47: 0 | BO47: 0 | BQ47: 43 | BR47: 235.8445946 | BS47: 235.8445946 | BT47: 235.8445946 | BU47: 235.8445946 | BV47: 235.8445946 | BX47: 43 | BY47: 353.7668919 | BZ47: 353.7668919 | CA47: 353.7668919 | CB47: 353.7668919 | CC47: 353.7668919 | CE47: 43 | CF47: 117.9222973 | CG47: 117.9222973 | CH47: 117.9222973 | CI47: 117.9222973 | CJ47: 117.9222973 | CL47: 43 | CM47: 295850 | CN47: 397653 | CO47: 397653 | CP47: 8048 | CQ47: 405701 | CR47: 0 | CS47: 0 | CT47: 0 | CU47: 0 | DA47: 43 | DB47: - | DC47: - | DD47: - | DE47: - | DF47: 0 | DG47: 0 | DH47: 0 | DI47: 0 | DK47: 295850 | DL47: 397653
A48: 44 | B48: 38658.66667 | C48: 38658.66667 | D48: 38658.66667 | E48: 38658.66667 | F48: 38658.66667 | H48: 38658.66667 | I48: 38658.66667 | J48: 38658.66667 | L48: 44 | M48: 38658.66667 | N48: 38658.66667 | O48: 38658.66667 | P48: 38658.66667 | Q48: 38658.66667 | S48: 0 | T48: 0 | U48: 0 | V48: 0 | X48: 44 | Y48: 406538 | Z48: 57366 | AA48: 463904 | AB48: 0 | AC48: 0 | AD48: 0 | AE48: 0 | AG48: 0 | AH48: 0 | AI48: 0 | AJ48: 0 | AL48: 0 | AM48: 0 | AN48: 0 | AO48: 0 | AP48: 44 | AQ48: 463904 | AR48: 463904 | AS48: 463904 | AT48: 463904 | AU48: 463904 | AV48: 44 | AW48: 463904 | AX48: 463904 | AY48: 463904 | AZ48: 463904 | BA48: 463904 | BF48: 0 | BG48: 0 | BH48: 0 | BI48: 0 | BK48: 0 | BL48: 0 | BM48: 0 | BN48: 0 | BO48: 0 | BQ48: 44 | BR48: 241.1143451 | BS48: 241.1143451 | BT48: 241.1143451 | BU48: 241.1143451 | BV48: 241.1143451 | BX48: 44 | BY48: 361.6715177 | BZ48: 361.6715177 | CA48: 361.6715177 | CB48: 361.6715177 | CC48: 361.6715177 | CE48: 44 | CF48: 120.5571726 | CG48: 120.5571726 | CH48: 120.5571726 | CI48: 120.5571726 | CJ48: 120.5571726 | CL48: 44 | CM48: 302460 | CN48: 406538 | CO48: 406538 | CP48: 8228 | CQ48: 414766 | CR48: 0 | CS48: 0 | CT48: 0 | CU48: 0 | DA48: 44 | DB48: - | DC48: - | DD48: - | DE48: - | DF48: 0 | DG48: 0 | DH48: 0 | DI48: 0 | DK48: 302460 | DL48: 406538
A49: 45 | B49: 39526.66667 | C49: 39526.66667 | D49: 39526.66667 | E49: 39526.66667 | F49: 39526.66667 | H49: 39526.66667 | I49: 39526.66667 | J49: 39526.66667 | L49: 45 | M49: 39526.66667 | N49: 39526.66667 | O49: 39526.66667 | P49: 39526.66667 | Q49: 39526.66667 | S49: 0 | T49: 0 | U49: 0 | V49: 0 | X49: 45 | Y49: 415666 | Z49: 58654 | AA49: 474320 | AB49: 0 | AC49: 0 | AD49: 0 | AE49: 0 | AG49: 0 | AH49: 0 | AI49: 0 | AJ49: 0 | AL49: 0 | AM49: 0 | AN49: 0 | AO49: 0 | AP49: 45 | AQ49: 474320 | AR49: 474320 | AS49: 474320 | AT49: 474320 | AU49: 474320 | AV49: 45 | AW49: 474320 | AX49: 474320 | AY49: 474320 | AZ49: 474320 | BA49: 474320 | BF49: 0 | BG49: 0 | BH49: 0 | BI49: 0 | BK49: 0 | BL49: 0 | BM49: 0 | BN49: 0 | BO49: 0 | BQ49: 45 | BR49: 246.5280665 | BS49: 246.5280665 | BT49: 246.5280665 | BU49: 246.5280665 | BV49: 246.5280665 | BX49: 45 | BY49: 369.7920998 | BZ49: 369.7920998 | CA49: 369.7920998 | CB49: 369.7920998 | CC49: 369.7920998 | CE49: 45 | CF49: 123.2640333 | CG49: 123.2640333 | CH49: 123.2640333 | CI49: 123.2640333 | CJ49: 123.2640333 | CL49: 45 | CM49: 309251 | CN49: 415666 | CO49: 415666 | CP49: 8412 | CQ49: 424078 | CR49: 0 | CS49: 0 | CT49: 0 | CU49: 0 | DA49: 45 | DB49: - | DC49: - | DD49: - | DE49: - | DF49: 0 | DG49: 0 | DH49: 0 | DI49: 0 | DK49: 309251 | DL49: 415666
A50: 46 | B50: 40418.58333 | C50: 40418.58333 | D50: 40418.58333 | E50: 40418.58333 | F50: 40418.58333 | H50: 40418.58333 | I50: 40418.58333 | J50: 40418.58333 | L50: 46 | M50: 40418.58333 | N50: 40418.58333 | O50: 40418.58333 | P50: 40418.58333 | Q50: 40418.58333 | S50: 0 | T50: 0 | U50: 0 | V50: 0 | X50: 46 | Y50: 425045 | Z50: 59978 | AA50: 485023 | AL50: 0 | AM50: 0 | AN50: 0 | AO50: 0 | AP50: 46 | AQ50: 485023 | AR50: 485023 | AS50: 485023 | AT50: 485023 | AU50: 485023 | AV50: 46 | AW50: 485023 | AX50: 485023 | AY50: 485023 | AZ50: 485023 | BA50: 485023 | BF50: 0 | BG50: 0 | BH50: 0 | BI50: 0 | BK50: 0 | BL50: 0 | BM50: 0 | BN50: 0 | BO50: 0 | BQ50: 46 | BR50: 252.0909563 | BS50: 252.0909563 | BT50: 252.0909563 | BU50: 252.0909563 | BV50: 252.0909563 | BX50: 46 | BY50: 378.1364345 | BZ50: 378.1364345 | CA50: 378.1364345 | CB50: 378.1364345 | CC50: 378.1364345 | CE50: 46 | CF50: 126.0454782 | CG50: 126.0454782 | CH50: 126.0454782 | CI50: 126.0454782 | CJ50: 126.0454782 | CL50: 46 | CM50: 316229 | CN50: 425045 | CO50: 425045 | CP50: 8602 | CQ50: 433647 | CR50: 0 | CS50: 0 | CT50: 0 | CU50: 0 | DA50: 46 | DB50: - | DC50: - | DD50: - | DE50: - | DF50: 0 | DG50: 0 | DH50: 0 | DI50: 0 | DK50: 316229 | DL50: 425045
A51: 47 | B51: 41138 | C51: 41138 | D51: 41138 | E51: 41138 | F51: 41138 | H51: 41138 | I51: 41138 | J51: 41138 | L51: 47 | M51: 41138 | N51: 41138 | O51: 41138 | P51: 41138 | Q51: 41138 | S51: 0 | T51: 0 | U51: 0 | V51: 0 | X51: 47 | Y51: 432611 | Z51: 61045 | AA51: 493656 | AL51: 0 | AM51: 0 | AN51: 0 | AO51: 0 | AP51: 47 | AQ51: 493656 | AR51: 493656 | AS51: 493656 | AT51: 493656 | AU51: 493656 | AV51: 47 | AW51: 493656 | AX51: 493656 | AY51: 493656 | AZ51: 493656 | BA51: 493656 | BF51: 0 | BG51: 0 | BH51: 0 | BI51: 0 | BK51: 0 | BL51: 0 | BM51: 0 | BN51: 0 | BO51: 0 | BQ51: 47 | BR51: 256.5779626 | BS51: 256.5779626 | BT51: 256.5779626 | BU51: 256.5779626 | BV51: 256.5779626 | BX51: 47 | BY51: 384.8669439 | BZ51: 384.8669439 | CA51: 384.8669439 | CB51: 384.8669439 | CC51: 384.8669439 | CE51: 47 | CF51: 128.2889813 | CG51: 128.2889813 | CH51: 128.2889813 | CI51: 128.2889813 | CJ51: 128.2889813 | CL51: 47 | CM51: 321858 | CN51: 432611 | CO51: 432611 | CP51: 8755 | CQ51: 441366 | CR51: 0 | CS51: 0 | CT51: 0 | CU51: 0 | DA51: 47 | DB51: - | DC51: - | DD51: - | DE51: - | DF51: 0 | DG51: 0 | DH51: 0 | DI51: 0 | DK51: 321858 | DL51: 432611
A52: 48 | B52: 43029 | C52: 43029 | D52: 43029 | E52: 43029 | F52: 43029 | H52: 43029 | I52: 43029 | J52: 43029 | L52: 48 | M52: 43029 | N52: 43029 | O52: 43029 | P52: 43029 | Q52: 43029 | S52: 0 | T52: 0 | U52: 0 | V52: 0 | X52: 48 | Y52: 452497 | Z52: 63851 | AA52: 516348 | AL52: 0 | AM52: 0 | AN52: 0 | AO52: 0 | AP52: 48 | AQ52: 516348 | AR52: 516348 | AS52: 516348 | AT52: 516348 | AU52: 516348 | AV52: 48 | AW52: 516348 | AX52: 516348 | AY52: 516348 | AZ52: 516348 | BA52: 516348 | BF52: 0 | BG52: 0 | BH52: 0 | BI52: 0 | BK52: 0 | BL52: 0 | BM52: 0 | BN52: 0 | BO52: 0 | BQ52: 48 | BR52: 268.3721414 | BS52: 268.3721414 | BT52: 268.3721414 | BU52: 268.3721414 | BV52: 268.3721414 | BX52: 48 | BY52: 402.5582121 | BZ52: 402.5582121 | CA52: 402.5582121 | CB52: 402.5582121 | CC52: 402.5582121 | CE52: 48 | CF52: 134.1860707 | CG52: 134.1860707 | CH52: 134.1860707 | CI52: 134.1860707 | CJ52: 134.1860707 | CL52: 48 | CM52: 336653 | CN52: 452497 | CO52: 452497 | CP52: 9158 | CQ52: 461655 | CR52: 0 | CS52: 0 | CT52: 0 | CU52: 0 | DA52: 48 | DB52: - | DC52: - | DD52: - | DE52: - | DF52: 0 | DG52: 0 | DH52: 0 | DI52: 0 | DK52: 336653 | DL52: 452497
A53: 49 | B53: 45916.66667 | C53: 45916.66667 | D53: 45916.66667 | E53: 45916.66667 | F53: 45916.66667 | H53: 45916.66667 | I53: 45916.66667 | J53: 45916.66667 | L53: 49 | M53: 45916.66667 | N53: 45916.66667 | O53: 45916.66667 | P53: 45916.66667 | Q53: 45916.66667 | S53: 0 | T53: 0 | U53: 0 | V53: 0 | X53: 49 | Y53: 482864 | Z53: 68136 | AA53: 551000 | AL53: 0 | AM53: 0 | AN53: 0 | AO53: 0 | AP53: 49 | AQ53: 551000 | AR53: 551000 | AS53: 551000 | AT53: 551000 | AU53: 551000 | AV53: 49 | AW53: 551000 | AX53: 551000 | AY53: 551000 | AZ53: 551000 | BA53: 551000 | BF53: 0 | BG53: 0 | BH53: 0 | BI53: 0 | BK53: 0 | BL53: 0 | BM53: 0 | BN53: 0 | BO53: 0 | BQ53: 49 | BR53: 286.3825364 | BS53: 286.3825364 | BT53: 286.3825364 | BU53: 286.3825364 | BV53: 286.3825364 | BX53: 49 | BY53: 429.5738046 | BZ53: 429.5738046 | CA53: 429.5738046 | CB53: 429.5738046 | CC53: 429.5738046 | CE53: 49 | CF53: 143.1912682 | CG53: 143.1912682 | CH53: 143.1912682 | CI53: 143.1912682 | CJ53: 143.1912682 | CL53: 49 | CM53: 359246 | CN53: 482864 | CO53: 482864 | CP53: 9772 | CQ53: 492636 | CR53: 0 | CS53: 0 | CT53: 0 | CU53: 0 | DA53: 49 | DB53: - | DC53: - | DD53: - | DE53: - | DF53: 0 | DG53: 0 | DH53: 0 | DI53: 0 | DK53: 359246 | DL53: 482864 | DM53: =DL53*1.020238 -> 492636.2016
A54: 50 | B54: 49122.08333 | C54: 49122.08333 | D54: 49122.08333 | E54: 49122.08333 | F54: 49122.08333 | H54: 49122.08333 | I54: 49122.08333 | J54: 49122.08333 | L54: 50 | M54: =$BD54/12 -> 50280.66667 | N54: =$BD54/12 -> 50280.66667 | O54: 50280.66667 | P54: 50280.66667 | Q54: 50280.66667 | S54: 50280.66667 | T54: 50280.66667 | U54: 50280.66667 | V54: 50280.66667 | X54: 50 | Y54: 516572 | Z54: 72893 | AA54: 589465 | AL54: 0 | AM54: 0 | AN54: 0 | AO54: 0 | AP54: 50 | AQ54: 589465 | AR54: 589465 | AS54: 589465 | AT54: 589465 | AU54: 589465 | AV54: 50 | AW54: =$BD54 -> 603368 | AX54: =$BD54 -> 603368 | AY54: 603368 | AZ54: 603368 | BA54: 603368 | BB54: =VLOOKUP(AV54,Pens_grundbeløb,IF(beregningsdato<$DF$3,2,3),FALSE) -> 528756 | BC54: =ROUND(BB54*($AL$4),0) -> 74612 | BD54: =SUM(BB54:BC54) -> 603368 | BF54: 0 | BG54: 0 | BH54: 0 | BI54: 0 | BK54: 603368 | BL54: 603368 | BM54: 603368 | BN54: 603368 | BO54: 603368 | BQ54: 50 | BR54: 306.3747401 | BS54: 306.3747401 | BT54: 306.3747401 | BU54: 306.3747401 | BV54: 306.3747401 | BX54: 50 | BY54: 459.5621102 | BZ54: 459.5621102 | CA54: 459.5621102 | CB54: 459.5621102 | CC54: 459.5621102 | CE54: 50 | CF54: 153.1873701 | CG54: 153.1873701 | CH54: 153.1873701 | CI54: 153.1873701 | CJ54: 153.1873701 | CL54: 50 | CM54: 384324 | CN54: 516572 | CO54: 516572 | CP54: 10454 | CQ54: 527026 | CR54: 0 | CS54: 0 | CT54: 0 | CU54: 0 | DA54: 50 | DB54: - | DC54: - | DD54: - | DE54: - | DF54: 0 | DG54: 0 | DH54: 0 | DI54: 0 | DJ54: 50 | DK54: 393389 | DL54: 528756 | DM54: =DL54*1.020238 -> 539456.9639
A55: 51 | B55: 54258.91667 | C55: 54258.91667 | D55: 54258.91667 | E55: 54258.91667 | F55: 54258.91667 | H55: 54258.91667 | I55: 54258.91667 | J55: 54258.91667 | L55: 51 | M55: =$BD55/12 -> 55719.41667 | N55: 55719.41667 | O55: 55719.41667 | P55: 55719.41667 | Q55: 55719.41667 | S55: 55719.41667 | T55: 55719.41667 | U55: 55719.41667 | V55: 55719.41667 | X55: 51 | Y55: 570591 | Z55: 80516 | AA55: 651107 | AL55: 0 | AM55: 0 | AN55: 0 | AO55: 0 | AP55: 51 | AQ55: 651107 | AR55: 651107 | AS55: 651107 | AT55: 651107 | AU55: 651107 | AV55: 51 | AW55: =$BD55 -> 668633 | AX55: 668633 | AY55: 668633 | AZ55: 668633 | BA55: 668633 | BB55: 585950 | BC55: =ROUND(BB55*($AL$4),0) -> 82683 | BD55: =SUM(BB55:BC55) -> 668633 | BF55: 0 | BG55: 0 | BH55: 0 | BI55: 0 | BK55: 668633 | BL55: 668633 | BM55: 668633 | BN55: 668633 | BO55: 668633 | BQ55: 51 | BR55: 338.4132017 | BS55: 338.4132017 | BT55: 338.4132017 | BU55: 338.4132017 | BV55: 338.4132017 | BX55: 51 | BY55: 507.6198025 | BZ55: 507.6198025 | CA55: 507.6198025 | CB55: 507.6198025 | CC55: 507.6198025 | CE55: 51 | CF55: 169.2066008 | CG55: 169.2066008 | CH55: 169.2066008 | CI55: 169.2066008 | CJ55: 169.2066008 | CL55: 51 | CM55: 424514 | CN55: 570591 | CO55: 570591 | CP55: 11548 | CQ55: 582139 | DA55: 51 | DB55: - | DC55: - | DD55: - | DE55: - | DF55: 0 | DG55: 0 | DH55: 0 | DI55: 0 | DJ55: 51 | DK55: 435941 | DL55: 585950 | DM55: 597808.4561
A56: 52 | B56: 61739.91667 | C56: 61739.91667 | D56: 61739.91667 | E56: 61739.91667 | F56: 61739.91667 | H56: 61739.91667 | I56: 61739.91667 | J56: 61739.91667 | L56: 52 | M56: 63458.58333 | N56: 63458.58333 | O56: 63458.58333 | P56: 63458.58333 | Q56: 63458.58333 | S56: 63458.58333 | T56: 63458.58333 | U56: 63458.58333 | V56: 63458.58333 | X56: 52 | Y56: 649262 | Z56: 91617 | AA56: 740879 | AL56: 0 | AM56: 0 | AN56: 0 | AO56: 0 | AP56: 52 | AQ56: 740879 | AR56: 740879 | AS56: 740879 | AT56: 740879 | AU56: 740879 | AV56: 52 | AW56: 761503 | AX56: 761503 | AY56: 761503 | AZ56: 761503 | BA56: 761503 | BB56: 667336 | BC56: 94167 | BD56: 761503 | BF56: 0 | BG56: 0 | BH56: 0 | BI56: 0 | BK56: 761503 | BL56: 761503 | BM56: 761503 | BN56: 761503 | BO56: 761503 | BQ56: 52 | BR56: 385.0722453 | BS56: 385.0722453 | BT56: 385.0722453 | BU56: 385.0722453 | BV56: 385.0722453 | BX56: 52 | BY56: 577.608368 | BZ56: 577.608368 | CA56: 577.608368 | CB56: 577.608368 | CC56: 577.608368 | CE56: 52 | CF56: 192.5361227 | CG56: 192.5361227 | CH56: 192.5361227 | CI56: 192.5361227 | CJ56: 192.5361227 | CL56: 52 | CM56: 483044 | CN56: 649262 | CO56: 649262 | CP56: 13140 | CQ56: 662402 | DA56: 52 | DB56: - | DC56: - | DD56: - | DE56: - | DF56: 0 | DG56: 0 | DH56: 0 | DI56: 0 | DJ56: 52 | DK56: 496491 | DL56: 667336 | DM56: 680841.546
A57: 53 | B57: 67788.08333 | C57: 67788.08333 | D57: 67788.08333 | E57: 67788.08333 | F57: 67788.08333 | H57: 67788.08333 | I57: 67788.08333 | J57: 67788.08333 | L57: 53 | M57: 70640 | N57: 70640 | O57: 70640 | P57: 70640 | Q57: 70640 | S57: 70640 | T57: 70640 | U57: 70640 | V57: 70640 | X57: 53 | Y57: 712865 | Z57: 100592 | AA57: 813457 | AL57: 0 | AM57: 0 | AN57: 0 | AO57: 0 | AP57: 53 | AQ57: 813457 | AR57: 813457 | AS57: 813457 | AT57: 813457 | AU57: 813457 | AV57: 53 | AW57: 847680 | AX57: 847680 | AY57: 847680 | AZ57: 847680 | BA57: 847680 | BB57: 742856 | BC57: 104824 | BD57: 847680 | BF57: 0 | BG57: 0 | BH57: 0 | BI57: 0 | BK57: 847680 | BL57: 847680 | BM57: 847680 | BN57: 847680 | BO57: 847680 | BQ57: 53 | BR57: 422.7946985 | BS57: 422.7946985 | BT57: 422.7946985 | BU57: 422.7946985 | BV57: 422.7946985 | BX57: 53 | BY57: 634.1920478 | BZ57: 634.1920478 | CA57: 634.1920478 | CB57: 634.1920478 | CC57: 634.1920478 | CE57: 53 | CF57: 211.3973493 | CG57: 211.3973493 | CH57: 211.3973493 | CI57: 211.3973493 | CJ57: 211.3973493 | CL57: 53 | CM57: 530364 | CN57: 712865 | CO57: 712865 | CP57: 14427 | CQ57: 727292 | DA57: 53 | DB57: - | DC57: - | DD57: - | DE57: - | DF57: 0 | DG57: 0 | DH57: 0 | DI57: 0 | DJ57: 53 | DK57: 552677 | DL57: 742856 | DM57: 757889.9197
A58: 54 | B58: 75851.25 | C58: 75851.25 | D58: 75851.25 | E58: 75851.25 | F58: 75851.25 | H58: 75851.25 | I58: 75851.25 | J58: 75851.25 | L58: 54 | M58: 79590.41667 | N58: 79590.41667 | O58: 79590.41667 | P58: 79590.41667 | Q58: 79590.41667 | S58: 79590.41667 | T58: 79590.41667 | U58: 79590.41667 | V58: 79590.41667 | X58: 54 | Y58: 797658 | Z58: 112557 | AA58: 910215 | AL58: 0 | AM58: 0 | AN58: 0 | AO58: 0 | AP58: 54 | AQ58: 910215 | AR58: 910215 | AS58: 910215 | AT58: 910215 | AU58: 910215 | AV58: 54 | AW58: 955085 | AX58: 955085 | AY58: 955085 | AZ58: 955085 | BA58: 955085 | BB58: 836980 | BC58: 118105 | BD58: 955085 | BF58: 0 | BG58: 0 | BH58: 0 | BI58: 0 | BK58: 955085 | BL58: 955085 | BM58: 955085 | BN58: 955085 | BO58: 955085 | BQ58: 54 | BR58: 473.0847193 | BS58: 473.0847193 | BT58: 473.0847193 | BU58: 473.0847193 | BV58: 473.0847193 | BX58: 54 | BY58: 709.627079 | BZ58: 709.627079 | CA58: 709.627079 | CB58: 709.627079 | CC58: 709.627079 | CE58: 54 | CF58: 236.5423597 | CG58: 236.5423597 | CH58: 236.5423597 | CI58: 236.5423597 | CJ58: 236.5423597 | CL58: 54 | CM58: 593449 | CN58: 797658 | CO58: 797658 | CP58: 16143 | CQ58: 813801 | DA58: 54 | DB58: - | DC58: - | DD58: - | DE58: - | DF58: 0 | DG58: 0 | DH58: 0 | DI58: 0 | DJ58: 54 | DK58: 622704 | DL58: 836980 | DM58: 853918.8012
A59: 55 | B59: 85543.25 | C59: 85543.25 | D59: 85543.25 | E59: 85543.25 | F59: 85543.25 | H59: 85543.25 | I59: 85543.25 | J59: 85543.25 | L59: 55 | M59: 89282.5 | N59: 89282.5 | O59: 89282.5 | P59: 89282.5 | Q59: 89282.5 | S59: 89282.5 | T59: 89282.5 | U59: 89282.5 | V59: 89282.5 | X59: 55 | Y59: 899580 | Z59: 126939 | AA59: 1026519 | AL59: 0 | AM59: 0 | AN59: 0 | AO59: 0 | AP59: 55 | AQ59: 1026519 | AR59: 1026519 | AS59: 1026519 | AT59: 1026519 | AU59: 1026519 | AV59: 55 | AW59: 1071390 | AX59: 1071390 | AY59: 1071390 | AZ59: 1071390 | BA59: 1071390 | BB59: 938902 | BC59: 132488 | BD59: 1071390 | BF59: 0 | BG59: 0 | BH59: 0 | BI59: 0 | BK59: 1071390 | BL59: 1071390 | BM59: 1071390 | BN59: 1071390 | BO59: 1071390 | BQ59: 55 | BR59: 533.5337838 | BS59: 533.5337838 | BT59: 533.5337838 | BU59: 533.5337838 | BV59: 533.5337838 | BX59: 55 | BY59: 800.3006757 | BZ59: 800.3006757 | CA59: 800.3006757 | CB59: 800.3006757 | CC59: 800.3006757 | CE59: 55 | CF59: 266.7668919 | CG59: 266.7668919 | CH59: 266.7668919 | CI59: 266.7668919 | CJ59: 266.7668919 | CL59: 55 | CM59: 669278 | CN59: 899580 | CO59: 899580 | CP59: 18206 | CQ59: 917786 | DA59: 55 | DB59: - | DC59: - | DD59: - | DE59: - | DF59: 0 | DG59: 0 | DH59: 0 | DI59: 0 | DJ59: 55 | DK59: 698533 | DL59: 938902 | DM59: 957903.4987
A60: 56 | B60: 96411.33333 | C60: 96411.33333 | D60: 96411.33333 | E60: 96411.33333 | F60: 96411.33333 | H60: 96411.33333 | I60: 96411.33333 | J60: 96411.33333 | L60: 56 | M60: 100150.8333 | N60: 100150.8333 | O60: 100150.8333 | P60: 100150.8333 | Q60: 100150.8333 | S60: 100150.8333 | T60: 100150.8333 | U60: 100150.8333 | V60: 100150.8333 | X60: 56 | Y60: 1013870 | Z60: 143066 | AA60: 1156936 | AL60: 0 | AM60: 0 | AN60: 0 | AO60: 0 | AP60: 56 | AQ60: 1156936 | AR60: 1156936 | AS60: 1156936 | AT60: 1156936 | AU60: 1156936 | AV60: 56 | AW60: 1201810 | AX60: 1201810 | AY60: 1201810 | AZ60: 1201810 | BA60: 1201810 | BB60: 1053195 | BC60: 148615 | BD60: 1201810 | BF60: 0 | BG60: 0 | BH60: 0 | BI60: 0 | BK60: 1201810 | BL60: 1201810 | BM60: 1201810 | BN60: 1201810 | BO60: 1201810 | BQ60: 56 | BR60: 601.3180873 | BS60: 601.3180873 | BT60: 601.3180873 | BU60: 601.3180873 | BV60: 601.3180873 | BX60: 56 | BY60: 901.977131 | BZ60: 901.977131 | CA60: 901.977131 | CB60: 901.977131 | CC60: 901.977131 | CE60: 56 | CF60: 300.6590437 | CG60: 300.6590437 | CH60: 300.6590437 | CI60: 300.6590437 | CJ60: 300.6590437 | CL60: 56 | CM60: 754309 | CN60: 1013870 | CO60: 1013870 | CP60: 20519 | CQ60: 1034389 | DA60: 56 | DB60: - | DC60: - | DD60: - | DE60: - | DF60: 0 | DG60: 0 | DH60: 0 | DI60: 0 | DJ60: 56 | DK60: 783566 | DL60: 1053195 | DM60: 1074509.56
Z61: =ROUND(Y61*valgt_regulering,0) -> 0
Z62: 0
Z63: 0
Z64: 0
Z65: 0
Z66: 0
Z67: 0
Z68: 0
A69: 2006-10-01 | B69: 4131.67 | C69: 4204.98 | D69: 4265.26 | E69: 4358.11 | F69: 4420 | Z69: 0
A70: 2007-04-01 | B70: 4229.54 | C70: 4303.89 | D70: 4365.01 | E70: 4459.17 | F70: 4521.93 | Z70: 0

Sheet Forside
J11: Lønniveau: | K11: 2024-04-01

Sheet Omregningstabel (hidden)
D1: 1.362716 | E1: 1.382496 | F1: 1.398079 | G1: 1.018559 | H1: 1.040662 | I1: 1.051157 | J1: 1.061566 | K1: 1.083422 | L1: 1.08868 | M1: 1.092675 | N1: 1.109523 | O1: 1.120038 | P1: 1.124454
B7: Indtast beløb: | C7: 1000
C10: 1/10 '84
C11: =Beløb -> 1000 | D11: 1/4 '98
B12: 1/4-98 | C12: =Beløb*_1_4_1998 -> 1362.716 | D12: =Beløb -> 1000 | E12: 1/10 '98
B13: 1/10-98 | C13: =Beløb*_1_10_1998 -> 1382.496 | D13: =Beløb/_1_4_1998*_1_10_1998 -> 1014.51513 | E13: =Beløb -> 1000 | F13: 1/4 '99
B14: 1/4-99 | C14: =Beløb*_1_4_1999 -> 1398.079 | D14: =Beløb/_1_4_1998*_1_4_1999 -> 1025.950381 | E14: =Beløb/_1_10_1998*_1_4_1999 -> 1011.271642 | F14: =Beløb -> 1000
B15: Grundbeløb pr. 31/3-00 | C15: =ROUND(C14,-2) -> 1400 | D15: =ROUND(D14,-2) -> 1000 | E15: =ROUND(E14,-2) -> 1000 | F15: =ROUND(F14,-2) -> 1000 | G15: 1/4 '00
B16: 1/4-00 | C16: =Nyt_beløb_1*_1_4_2000 -> 1425.9826 | D16: =Nyt_beløb_2*_1_4_2000 -> 1018.559 | E16: =Nyt_beløb_3*_1_4_2000 -> 1018.559 | F16: =Nyt_beløb_4*_1_4_2000 -> 1018.559 | G16: =Beløb -> 1000 | H16: 1/4 '01
B17: 1/4-01 | C17: =Nyt_beløb_1*_1_4_2001 -> 1456.9268 | D17: =Nyt_beløb_2*_1_4_2001 -> 1040.662 | E17: =Nyt_beløb_3*_1_4_2001 -> 1040.662 | F17: =Nyt_beløb_4*_1_4_2001 -> 1040.662 | G17: =beløb_4_00/_1_4_2000*_1_4_2001 -> 1021.700265 | H17: =Beløb -> 1000 | I17: 1/10 '01
B18: 1/10-01 | C18: =Nyt_beløb_1*_1_10_2001 -> 1471.6198 | D18: =Nyt_beløb_2*_1_10_2001 -> 1051.157 | E18: =Nyt_beløb_3*_1_10_2001 -> 1051.157 | F18: =Nyt_beløb_4*_1_10_2001 -> 1051.157 | G18: =beløb_4_00/_1_4_2000*_1_10_2001 -> 1032.004037 | H18: =beløb_4_01/_1_4_2001*_1_10_2001 -> 1010.084927 | I18: =Beløb -> 1000 | J18: 1/4 '02
B19: 1/4-02 | C19: =Nyt_beløb_1*_1_4_2002 -> 1486.1924 | D19: =Nyt_beløb_2*_1_4_2002 -> 1061.566 | E19: =Nyt_beløb_3*_1_4_2002 -> 1061.566 | F19: =Nyt_beløb_4*_1_4_2002 -> 1061.566 | G19: =beløb_4_00/_1_4_2000*_1_4_2002 -> 1042.223376 | H19: =beløb_4_01/_1_4_2001*_1_4_2002 -> 1020.087214 | I19: =beløb_10_01/_1_10_2001*_1_4_2002 -> 1009.902422 | J19: =Beløb -> 1000 | K19: 1/4 '03
B20: 1/4-03 | C20: =Nyt_beløb_1*_1_4_2003 -> 1516.7908 | D20: =Nyt_beløb_2*_1_4_2003 -> 1083.422 | E20: =Nyt_beløb_3*_1_4_2003 -> 1083.422 | F20: =Nyt_beløb_4*_1_4_2003 -> 1083.422 | G20: =beløb_4_00/_1_4_2000*_1_4_2003 -> 1063.681142 | H20: =beløb_4_01/_1_4_2001*_1_4_2003 -> 1041.08923 | I20: =beløb_10_01/_1_10_2001*_1_4_2003 -> 1030.694749 | J20: =beløb_4_02/_1_4_2002*_1_4_2003 -> 1020.588451 | K20: =Beløb -> 1000 | L20: 1/8 '03
B21: 1/8-03 | C21: =Nyt_beløb_1*_1_8_2003 -> 1524.152 | D21: =Nyt_beløb_2*_1_8_2003 -> 1088.68 | E21: =Nyt_beløb_3*_1_8_2003 -> 1088.68 | F21: =Nyt_beløb_4*_1_8_2003 -> 1088.68 | G21: =beløb_4_00/_1_4_2000*_1_8_2003 -> 1068.843337 | H21: =beløb_4_01/_1_4_2001*_1_8_2003 -> 1046.141783 | I21: =beløb_10_01/_1_10_2001*_1_8_2003 -> 1035.696856 | J21: =beløb_4_02/_1_4_2002*_1_8_2003 -> 1025.541511 | K21: =beløb_4_03/_1_4_2003*_1_8_2003 -> 1004.853141 | L21: =Beløb -> 1000 | M21: 1/10 '03
B22: 1/10-03 | C22: =Nyt_beløb_1*_1_10_2003 -> 1529.745 | D22: =Nyt_beløb_2*_1_10_2003 -> 1092.675 | E22: =Nyt_beløb_3*_1_10_2003 -> 1092.675 | F22: =Nyt_beløb_4*_1_10_2003 -> 1092.675 | G22: =beløb_4_00/_1_4_2000*_1_10_2003 -> 1072.765544 | H22: =beløb_4_01/_1_4_2001*_1_10_2003 -> 1049.980685 | I22: =beløb_4_01/_1_4_2001*_1_10_2003 -> 1049.980685 | J22: =beløb_4_02/_1_4_2002*_1_10_2003 -> 1029.304819 | K22: =beløb_4_03/_1_4_2003*_1_10_2003 -> 1008.540532 | L22: =beløb_8_03/_1_8_2003*_1_10_2003 -> 1003.669582 | M22: =Beløb -> 1000 | N22: 1/4 '04
B23: 1/4 '04 | C23: =Nyt_beløb_1*_1_4_2004 -> 1553.3322 | D23: =Nyt_beløb_2*_1_4_2004 -> 1109.523 | E23: =Nyt_beløb_3*_1_4_2004 -> 1109.523 | F23: =Nyt_beløb_4*_1_4_2004 -> 1109.523 | G23: =beløb_4_00/_1_4_2000*_1_4_2004 -> 1089.30656 | H23: =beløb_4_01/_1_4_2001*_1_4_2004 -> 1066.17038 | I23: =beløb_4_01/_1_4_2001*_1_4_2004 -> 1066.17038 | J23: =beløb_4_02/_1_4_2002*_1_4_2004 -> 1045.175712 | K23: =beløb_4_03/_1_4_2003*_1_4_2004 -> 1024.091259 | L23: =beløb_8_03/_1_8_2003*_1_4_2004 -> 1019.145203 | M23: =beløb_10_03/_1_10_2003*_1_4_2004 -> 1015.41904 | N23: =Beløb -> 1000 | O23: 1/8 '04
B24: 1/8 '04 | C24: =Nyt_beløb_1*_1_8_2004 -> 1568.0532 | D24: =Nyt_beløb_2*_1_8_2004 -> 1120.038 | E24: =Nyt_beløb_3*_1_8_2004 -> 1120.038 | F24: =Nyt_beløb_4*_1_8_2004 -> 1120.038 | G24: =beløb_4_00/_1_4_2000*_1_8_2004 -> 1099.629967 | H24: =beløb_4_01/_1_4_2001*_1_8_2004 -> 1076.274525 | I24: =beløb_4_01/_1_4_2001*_1_8_2004 -> 1076.274525 | J24: =beløb_4_02/_1_4_2002*_1_8_2004 -> 1055.08089 | K24: =beløb_4_03/_1_4_2003*_1_8_2004 -> 1033.796618 | L24: =beløb_8_03/_1_8_2003*_1_8_2004 -> 1028.803689 | M24: =beløb_10_03/_1_10_2003*_1_8_2004 -> 1025.042213 | N24: =beløb_4_04/_1_4_2004*_1_8_2004 -> 1009.477046 | O24: =Beløb -> 1000 | P24: 1/10 '04
B25: 1/10 '04 | C25: =Nyt_beløb_1*_1_10_2004 -> 1574.2356 | D25: =Nyt_beløb_2*_1_10_2004 -> 1124.454 | E25: =Nyt_beløb_3*_1_10_2004 -> 1124.454 | F25: =Nyt_beløb_4*_1_10_2004 -> 1124.454 | G25: =beløb_4_00/_1_4_2000*_1_10_2004 -> 1103.965504 | H25: =beløb_4_01/_1_4_2001*_1_10_2004 -> 1080.517978 | I25: =beløb_4_01/_1_4_2001*_1_10_2004 -> 1080.517978 | J25: =beløb_4_02/_1_4_2002*_1_10_2004 -> 1059.240782 | K25: =beløb_4_03/_1_4_2003*_1_10_2004 -> 1037.872593 | L25: =beløb_8_03/_1_8_2003*_1_10_2004 -> 1032.859977 | M25: =beløb_10_03/_1_10_2003*_1_10_2004 -> 1029.083671 | N25: =beløb_4_04/_1_4_2004*_1_10_2004 -> 1013.457134 | O25: =beløb_8_04/_1_8_2004*_1_10_2004 -> 1003.942723 | P25: =Beløb -> 1000

Sheet Tillæg_trin (hidden)
A1: 3
B3: Valgt lønniveau: | C3: =Forside!K11 -> 2024-04-01
B5: Løngruppe | D5: 3
B6: Timer/uge | D6: 37
B7: Pensions-% inkl. evt. fritvalgs-% | D7: 13.89
B8: Særlig feriegodtgørelse, aktuel pct. | D8: 1.95
B10: Stigning: | C10: Fra | D10: Til
B11: Løntrin | C11: 18 | D11: 19
B13: Løn | C13: =(VLOOKUP(til_trin,Lønark!A4:F60,løngruppe+2,FALSE)-VLOOKUP(fra_trin,Lønark!A4:F60,løngruppe+2,FALSE))/37*timetal*12 -> 4363
B14: Pension inkl. evt. fritvalgstillæg | C14: =(VLOOKUP(til_trin,Lønark!L4:Q60,løngruppe+2,FALSE)-VLOOKUP(fra_trin,Lønark!L4:Q60,løngruppe+2,FALSE))/37*timetal*pensionsstatus%*12 -> 606.0207
B15: Ferietillæg | C15: =ferie_pct%*C13 -> 85.0785
B16: Årlig bruttoudgift i alt | C16: =ROUND(SUM(C13:C15),0) -> 5054

Sheet Tillæg_kr (hidden)
A1: 2
C3: Valgt lønniveau: | D3: =Forside!K11 -> 2024-04-01
A5: =VLOOKUP(dummy,reg_procenter,2,FALSE) ->  | C5: Årligt beløb, 31.3.2000 niveau | D5: 12900
C6: Timer/uge | D6: 30
C7: Pension-% inkl. evt. fritvalgs-% | D7: 13.89
C8: Særlig feriegodtg., aktuel pct. | D8: 1.95
C11: bruttoudgift / år | D11: bruttoudgift / md
B12: Løn | C12: =kr*valgt_regulering/37*timetal -> 11935.38332 | D12: =beløb/12 -> 994.615277
B13: Pension inkl. evt. fritvalgstillæg | C13: =beløb*pensionsstatus% -> 1657.824744 | D13: =C13/12 -> 138.152062
B14: Ferietillæg | C14: =D8%*(C12) -> 232.7399748 | D14: =C14/12 -> 19.3949979
B15: Bruttoudgift i alt | C15: =ROUND(SUM(C12:C14),0) -> 13826 | D15: =ROUND(SUM(D12:D14),0) -> 1152

Sheet Omregner_gl. til nyt_niveau (hidden)
B2: Omregner A - fra grundbeløb 31.3.2000 niveau til nyt grundbeløb pr. 31.3.2018 - RLTN | J2: Omregner B - fra nutidskroner tilbage til nyt grundbeløb pr. 31.3.2018 - RLTN
B4: Brug omregneren, når satser og tillæg i lokale aftaler skal omlægges til ny niveau på regionsområdet | J4: Brug omregneren, når du vil finde ud af hvad et givent beløb i nutidskroner svarer til i nyt grundbeløb
B8: Kun ÅRLIGE grundbeløb; Indtast årligt grundbeløb pr. 31.3.2000 | D8: Nyt grundbeløb pr. 31.3.2018 | F8: ="Aktuelt beløb pr. "&DAY(beregningsdato)&"."&MONTH(beregningsdato)&"."&YEAR(beregningsdato) -> Aktuelt beløb pr. 1.4.2024 | J8: ="Tillæg pr. år; Indtast beløb i nutidskroner ("&DAY(beregningsdato)&"."&MONTH(beregningsdato)&"."&YEAR(beregningsdato)&")" -> Tillæg pr. år; Indtast beløb i nutidskroner (1.4.2024) | L8: svarer til: årligt grundbeløb (31/3-2018)
B9: 1500 | C9: => | D9: =ROUND(B9*1.344105,0) -> 2016 | E9: => | F9: =ROUND(D9*valgt_regulering,2) -> 2300.48 | J9: 31000 | K9: => | L9: =ROUND(J9/1.020238,0) -> 30385
B13: Grundbeløb pr. måned/uge eller pr. tidsenhed Indtast grundbeløb pr. 31.3.2000 | D13: Nyt grundbeløb pr. 31.3.2018 | F13: ="Aktuelt beløb pr. "&DAY(beregningsdato)&"."&MONTH(beregningsdato)&"."&YEAR(beregningsdato) -> Aktuelt beløb pr. 1.4.2024 | J13: ="Tillæg pr. måned/uge eller pr. tidsenhed; Indtast beløb i nutidskroner ("&DAY(beregningsdato)&"."&MONTH(beregningsdato)&"."&YEAR(beregningsdato)&")" -> Tillæg pr. måned/uge eller pr. tidsenhed; Indtast beløb i nutidskroner (1.4.2024) | L13: svarer til: grundbeløb (31/3-2018)
B14: 34.85 | C14: => | D14: =ROUND(B14*1.344105,2) -> 46.84 | E14: => | F14: =ROUND(D14*valgt_regulering,2) -> 53.45 | J14: 47.8 | K14: => | L14: =J14/valgt_regulering -> 41.88907458

Sheet Tid op_ned
A1: 2 | B1: Valgt lønniveau: | C1: =Forside!K11 -> 2024-04-01
B3: Grundoplysninger:
B4: Løngruppe | C4: 0
B5: Pensions-% inkl. evt. fritvalgs-% | C5: 14.7
B6: Særlig feriegodtgørelse, aktuel procent | C6: 1.95
B9: Lønsammensætning (trin i alt og grundbeløb i alt) | C9: Før ændring | E9: Efter ændring
B11: Løndele: | C11: I alt
B13: Løntrin - centralt og lokalt aftalte | C13: 22 | E13: 22
A15: 2018-10-01 | B15: =IF(C1<A15,"Tillæg (grundbeløb 31.3.2000) kr./år centralt og lokalt aftalte","Tillæg (grundbeløb 31.3.2018) kr./år centralt og lokalt aftalte") -> Tillæg (grundbeløb 31.3.2018) kr./år centralt og lokalt aftalte | C15: 1300 | E15: 1300
C18: Før ændring | E18: Efter ændring | H18: ="Difference "&IF(C24>E24,"(lønnedgang)","(lønstigning)") -> Difference (lønnedgang)
B19: Timer/uge | C19: 37 | E19: 35 | H19: =C19-timetal_ny -> 2
B21: Fast månedsløn | C21: =(VLOOKUP(C13,Lønkort_løn,$C$4+2,FALSE)+((C15)*valgt_regulering))/12/37*C19 -> 26558.53681 | E21: =(VLOOKUP(E13,Lønkort_løn,$C$4+2,FALSE)+((E15)*valgt_regulering))/12/37*E19 -> 25122.94022 | H21: =E21-C21 -> -1435.596584
B22: Pension inkl. evt. fritvalgstillæg | C22: =((VLOOKUP(C13,Lønkort_pens,$C$4+2,FALSE)+((C15)*valgt_regulering))/12/37*C19*$C$5%) -> 3904.104911 | E22: =((VLOOKUP(E13,Lønkort_pens,$C$4+2,FALSE)+((E15)*valgt_regulering))/12/37*E19*$C$5%) -> 3693.072213 | H22: =E22-C22 -> -211.0326979
B23: Ferietillæg | C23: =$C$6%*C21 -> 517.8914678 | E23: =$C$6%*E21 -> 489.8973344 | H23: =E23-C23 -> -27.99413339
B24: Månedsløn, brutto | C24: =SUM(C21:C23) -> 30980.53319 | E24: =SUM(E21:E23) -> 29305.90977 | H24: =E24-C24 -> -1674.623416
B26: Fast løn, år | C26: =(VLOOKUP(C13,Lønkort_løn,$C$4+2,FALSE)+((C15)*valgt_regulering))/37*C19 -> 318702.4417 | D26: =D21*12 -> 0 | E26: =(VLOOKUP(E13,Lønkort_løn,$C$4+2,FALSE)+((E15)*valgt_regulering))/37*E19 -> 301475.2827 | H26: =E26-C26 -> -17227.15901
B27: Pension inkl. evt. fritvalgstillæg, år | C27: =((VLOOKUP(C13,Lønkort_pens,$C$4+2,FALSE)+((C15)*valgt_regulering))/37*C19*$C$5%) -> 46849.25893 | D27: 0 | E27: =((VLOOKUP(E13,Lønkort_pens,$C$4+2,FALSE)+((E15)*valgt_regulering))/37*E19*$C$5%) -> 44316.86656 | H27: =E27-C27 -> -2532.392375
B28: Ferietillæg, år | C28: =C23*12 -> 6214.697613 | E28: =E23*12 -> 5878.768012 | H28: =E28-C28 -> -335.9296007
B29: Årsløn, brutto | C29: =SUM(C26:C28) -> 371766.3982 | E29: =SUM(E26:E28) -> 351670.9173 | H29: =E29-C29 -> -20095.48099
B31: Timeløn | C31: =ROUND((VLOOKUP(C13,Lønkort_løn,$C$4+2,FALSE)+((C15)*valgt_regulering))/1924,2) -> 165.65 | D31: =D26/timetal_ny*37/1924 -> 0 | E31: =ROUND((VLOOKUP(E13,Lønkort_løn,$C$4+2,FALSE)+((E15)*valgt_regulering))/1924,2) -> 165.65 | H31: =E31-C31 -> 0

Sheet Samlet_omk
A1: 2 | B1: Valgt lønniveau: | C1: =Forside!K11 -> 2024-04-01
B3: Løngruppe | C3: 0
B4: Timer/uge | C4: 37
B5: Pensions-% | C5: 13.89
B6: Særlig feriegodtgørelse, aktuel pct. | C6: 1.95
B8: Løntrin | C8: 13
A10: 2018-10-01 | B10: =IF(C1<A10,"Reguleret tillæg (niveau 31.3.2000) kr./år","Reguleret tillæg (niveau 31.3.2018) kr./år") -> Reguleret tillæg (niveau 31.3.2018) kr./år | C10: 12903
B13: Løn/måned | C13: =(VLOOKUP(fra_trin,Lønkort_løn,løngruppe+2,FALSE)+(C10*valgt_regulering))/12/37*timetal -> 24243.39412
B14: Pension inkl. evt. fritvalgstillæg | C14: =(VLOOKUP(fra_trin,Lønkort_pens,løngruppe+2,FALSE)+(C10*valgt_regulering))/12/37*timetal*pensionsstatus% -> 3367.407443
B15: Ferietillæg | C15: =C6%*C13 -> 472.7461853
B16: Månedlig bruttoudgift i alt | C16: =SUM(C13:C15) -> 28083.54775
B18: Løn/år | C18: =(VLOOKUP(fra_trin,Lønkort_løn,løngruppe+2,FALSE)+(C10*valgt_regulering))/37*timetal -> 290920.7294
B19: Pension | C19: =(VLOOKUP(fra_trin,Lønkort_pens,løngruppe+2,FALSE)+(C10*valgt_regulering))/37*timetal*pensionsstatus% -> 40408.88932
B20: Ferietillæg | C20: =C15*12 -> 5672.954224
B21: Årlig bruttoudgift i alt | C21: =SUM(C18:C20) -> 337002.573
B23: Timeløn | C23: =ROUND(VLOOKUP(fra_trin,Lønark!A4:AU60,løngruppe+43,FALSE)/1924,2)+ROUND(C10*valgt_regulering/1924,2) -> 151.2

Sheet Omregner_'18_niveau
L1: 2018-10-01
L2: =IF(F11<L1,"00","18") -> 18
D11: Valgt lønniveau: | F11: =Forside!K11 -> 2024-04-01 | H11: Timetal: | I11: 37
B13: ="1) Grundbeløb pr. 31-3-20"&L2&" omregnet til nutidskr." -> 1) Grundbeløb pr. 31-3-2018 omregnet til nutidskr.
C14: Årligt grundbeløb: | E14: 34409
E16: år | F16: måned
C17: Aktuelt beløb | E17: =ROUND(kr_omregnes*valgt_regulering,0)/37*I11 -> 39264 | F17: =ROUND(kr_omregnes*valgt_regulering,2)/37*I11/12 -> 3272.035
B20: ="2) Beløb der skal omregnes til '31-3-20"&L2&"-niveau'" -> 2) Beløb der skal omregnes til '31-3-2018-niveau'
C21: Månedligt beløb | E21: 390.93
E23: år | F23: måned
C24: ="Grundbeløb pr. 31-3-20"&L2 -> Grundbeløb pr. 31-3-2018 | E24: =ROUND(E21*12/valgt_regulering,0)/I11*37 -> 4111 | F24: =ROUND(E21*12/valgt_regulering,2)/I11*37/12 -> 342.5875
